Workbook

Sheet 1. Information Sheet
U1: a | AA1: =IF(OR(F16="", F16="(if applicable)"), F14, F14 & " - " & F16) -> Alectra Utilities Corporation - PowerStream Rate Zone
A12: Note: Depending on the selections made below, certain worksheets in this workbook will be hidden. | M12: Version | N12: 4.1
E14: Utility Name | F14: Alectra Utilities Corporation - PowerStream Rate Zone
E18: Assigned EB Number | F18: EB-2018-0016
E20: Name of Contact and Title | F20: Natalie Yeates, Director, Regulatory Affairs & Reporting
E22: Phone Number | F22: 905-283-4095
E24: Email Address | F24: natalie.yeates@alectrautilities.com
A26: Is this Capital Module being filed in a CoS or Price-Cap IR Application? | F26: Price-Cap IR | J26: Rate Year | K26: 2019
A28: ="Indicate the Price-Cap IR Year (1, 2, 3, 4, etc) in which " &F14 & " is applying:" -> Indicate the Price-Cap IR Year (1, 2, 3, 4, etc) in which Alectra Utilities Corporation - PowerStream Rate Zone is applying: | F28: 2
A30: ="For which Rate Year is " &F14 & " seeking approval for its CoS application?" -> For which Rate Year is Alectra Utilities Corporation - PowerStream Rate Zone seeking approval for its CoS application?
A32: =F14 & " is applying for:" -> Alectra Utilities Corporation - PowerStream Rate Zone is applying for: | F32: ICM Approval
A34: Last Rebasing Year: | F34: =IF(F26="COS", K26-F28, VLOOKUP(F28, D109:E117,2,FALSE)) -> 2017
A36: Last COS OEB Application Number
A38: The most recent complete year for which actual billing and load data exists | F38: =K26-2 -> 2017
E40: Current IPI | F40: 0.012
E42: Strech Factor Assigned to Middle Cohort | F42: III
E44: Stretch Factor Value | F44: 0.003
E46: Price Cap Index | F46: =F40-F44 -> 0.009
A48: Based on the inputs above, the growth factor utilized in the Materiality Threshold Calculation will be determined by: | F48: =IF($F$26="COS", $K$26 & " Test Year Distribution Revenues", VLOOKUP($F$28, $D$109:$G$117, 3,FALSE)) -> 2017 Board-Approved Distribution Revenues | I48: =LEFT(F48,4) -> 2017 | J48: These will be hidden later. For year three price cap IR, it should be most recent actuals for 2014 divided by 2013 CoS Board-approved. For year 4 price cap IR, should be 2014 actuals divided by 2012 CoS Board-approved.
F49: =IF(F26="COS",F38&" Actual Distribution Revenues",VLOOKUP($F$28, $D$109:$G$117, 4,FALSE)) -> 2016 Actual Distribution Revenues | I49: =LEFT(F49,4) -> 2016
B51: Notes
C53: Pale green cells represent input cells.
C55: Pale blue cells represent drop-down lists. The applicant should select the appropriate item from the drop-down list.
C57: White cells contain fixed values, automatically generated values or formulae.
A66: OEB policies regarding rate-setting and rebasing following distributor consolidations could allow a distributor to not rebase rates for up to ten years. A distributor could also apply for and receive OEB approval to defer rebasing. If a distributor is under Price Cap IR for more than four years after rebasing and applies for an ICM, this spreadsheet will need to be adapted to accommodate those circumstances. The distributor should contact OEB staff to discuss the circumstances so that a customized model can be provided.
B93: CoS | D93: Price Cap IR | H93: Deferred Rebasing (e.g. due to MAADs)
C94: Year | D94: 1 | E94: 2 | F94: 3 | G94: 4 | H94: 5 | I94: 6 | J94: 7 | K94: 8
A95: RY | B95: =K26 -> 2019 | C95: t | D95: =K26 -> 2019 | E95: =D95 -> 2019 | F95: =D95 -> 2019 | G95: =F95 -> 2019 | H95: 2016 | I95: 2016 | J95: 2016 | K95: 2016
A96: LY ACTUALS | B96: =B95-2 -> 2017 | C96: t-2 | D96: =D95-2 -> 2017 | E96: =E95-2 -> 2017 | F96: 2017 | G96: 2017 | H96: 2014 | I96: 2014 | J96: 2014 | K96: 2014
A97: LAST COS | D97: =D95-1 -> 2018 | E97: =E95-2 -> 2017 | F97: =F95-3 -> 2016 | G97: =G95-G94 -> 2015 | H97: =H95-5 -> 2011 | I97: =I95-6 -> 2010 | J97: =J95-7 -> 2009 | K97: =K95-8 -> 2008
A99: Growth
A100: Numerator | B100: =B95&" Test Year Distribution Revenues" -> 2019 Test Year Distribution Revenues | D100: =D97&" Board-Approved Distribution Revenues" -> 2018 Board-Approved Distribution Revenues | E100: =E97&" Board-Approved Distribution Revenues" -> 2017 Board-Approved Distribution Revenues | F100: =F97+1&" Actual Distribution Revenues" -> 2017 Actual Distribution Revenues | G100: =G97+2&" Actual Distribution Revenues" -> 2017 Actual Distribution Revenues | H100: =H97+3&" Actual Distribution Revenues" -> 2014 Actual Distribution Revenues | I100: =I97+4&" Actual Distribution Revenues" -> 2014 Actual Distribution Revenues | J100: =J97+5&" Actual Distribution Revenues" -> 2014 Actual Distribution Revenues | K100: =K97+6&" Actual Distribution Revenues" -> 2014 Actual Distribution Revenues
A101: Denominator | B101: =B96&" Actual Distribution Revenues" -> 2017 Actual Distribution Revenues | D101: =D96&" Actual Distribution Revenues" -> 2017 Actual Distribution Revenues | E101: =E96-1&" Actual Distribution Revenues" -> 2016 Actual Distribution Revenues | F101: =F97&" Board-Approved Distribution Revenues" -> 2016 Board-Approved Distribution Revenues | G101: 2015 Board-Approved Distribution Revenues | H101: 2011 Board-Approved Distribution Revenues | I101: 2010 Board-Approved Distribution Revenues | J101: 2009 Board-Approved Distribution Revenues | K101: 2008 Board-Approved Distribution Revenues
A102: Annualized? | B102: Yes | D102: No | E102: No | F102: No | G102: Yes | H102: Yes | I102: Yes | J102: Yes | K102: Yes
A103: Divisor to Annulized | B103: =B106 -> 2 | D103: 1 | E103: 1 | F103: 1 | G103: 2 | H103: 3 | I103: 4 | J103: 5 | K103: 6
B104: =LEFT(B100,4) -> 2019 | D104: =LEFT(D100,4) -> 2018 | E104: 2017 | F104: 2017 | G104: 2017 | H104: 2014 | I104: 2014 | J104: 2014 | K104: 2014
B105: =LEFT(B101,4) -> 2017 | D105: 2017 | E105: 2016 | F105: 2016 | G105: 2015 | H105: 2011 | I105: 2010 | J105: 2009 | K105: 2008
B106: =B104-B105 -> 2 | D106: =D104-D105 -> 1 | E106: 1 | F106: 1 | G106: 2 | H106: 3 | I106: 4 | J106: 5 | K106: 6
D109: Price Cap IR | E109: Last CoS
D110: 1 | E110: =D97 -> 2018 | F110: =D100 -> 2018 Board-Approved Distribution Revenues | G110: =D101 -> 2017 Actual Distribution Revenues
D111: 2 | E111: =E97 -> 2017 | F111: =E100 -> 2017 Board-Approved Distribution Revenues | G111: =E101 -> 2016 Actual Distribution Revenues
D112: 3 | E112: =F97 -> 2016 | F112: =F100 -> 2017 Actual Distribution Revenues | G112: =F101 -> 2016 Board-Approved Distribution Revenues
D113: 4 | E113: =G97 -> 2015 | F113: =G100 -> 2017 Actual Distribution Revenues | G113: =G101 -> 2015 Board-Approved Distribution Revenues
D114: 5 | E114: =H97 -> 2011 | F114: =H100 -> 2014 Actual Distribution Revenues | G114: =H101 -> 2011 Board-Approved Distribution Revenues
D115: 6 | E115: =I97 -> 2010 | F115: =I100 -> 2014 Actual Distribution Revenues | G115: =I101 -> 2010 Board-Approved Distribution Revenues
D116: 7 | E116: =J97 -> 2009 | F116: =J100 -> 2014 Actual Distribution Revenues | G116: =J101 -> 2009 Board-Approved Distribution Revenues
D117: 8 | E117: =K97 -> 2008 | F117: =K100 -> 2014 Actual Distribution Revenues | G117: =K101 -> 2008 Board-Approved Distribution Revenues

Sheet 2. Related Links (hidden)
A15: intentionally blank

Sheet lists (hidden)
A1: COMPETITIVE SECTOR MULTI-UNIT RESIDENTIAL SERVICE CLASSIFICATION | B1: Embedded Distributor | C1: =COUNTA(B1:B17) -> 4 | I1: A Standby Service Charge will be applied for a month where standby power is not provided. The applicable rate is the approved Distribution Volumetric Rate of the applicable service class and is applied to gross metered demand or contracted amount, whichever is greater. A monthly administration charge of $200, for simple metering arrangements, or $500, for complex metering arrangements, will also be applied. | L1: Loss Factors | N1: Units | O1: Units1 | P1: Units2 | Z1: Account History | AA1: Account set up charge/change of occupancy charge (plus credit agency costs if applicable) | AB1: Total Loss Factor – Embedded Distributor – Hydro One Networks Inc. | AL1: Algoma Power Inc. | AM1: Algoma Power Inc. | AO1: DISTRIBUTED GENERATION [DGEN] | AP1: kW | AT1: Sub-Total: Delivery (Distribution and Retail Transmission)
A2: DISTRIBUTED GENERATION [DGEN] SERVICE CLASSIFICATION | B2: General Service 3,000 to 4,999 kW | I2: Distribution Volumetric Rate | L2: Total Loss Factor – Primary Metered Customer | N2: $ | O2: $/kWh | P2: $ | Z2: Account set up charge/change of occupancy charge | AA2: Administrative Billing Charge | AB2: Total Loss Factor – Primary Metered Customer | AL2: Atikokan Hydro Inc. | AM2: Atikokan Hydro Inc. | AO2: EMBEDDED DISTRIBUTOR | AP2: kW | AT2: Wholesale Market Service Rate | AW2: =AU2*AV2 -> 0 | AX2: =AU2 -> 0 | AY2: 0 | AZ2: =AX2*AY2 -> 0 | BB2: =AZ2-AW2 -> 0 | BC2: =BB2/AW2 -> 
A3: EMBEDDED DISTRIBUTOR SERVICE CLASSIFICATION | B3: General Service 1,000 to 4,999 kW | I3: Distribution Volumetric Rate - $/kW of contracted amount | L3: Total Loss Factor – Primary Metered Customer < 5,000 kW | N3: $/kWh | O3: $/kW | P3: % | W3: MSC | Z3: Account set up charge/change of occupancy charge (plus credit agency costs if applicable – Residential) | AA3: Bell Canada Pole Rentals | AB3: Total Loss Factor – Primary Metered Customer < 5,000 kW | AL3: Bluewater Power Distribution Corporation | AM3: Bluewater Power Distribution Corporation | AO3: EMBEDDED DISTRIBUTOR | AP3: kW | AT3: Rural or Remote Electricity Rate Protection Charge (RRRP) | AW3: =AU3*AV3 -> 0 | AX3: 0 | AY3: 0 | AZ3: =AX3*AY3 -> 0 | BB3: =AZ3-AW3 -> 0 | BC3: =BB3/AW3 -> 
A4: EMBEDDED DISTRIBUTOR SERVICE CLASSIFICATION FOR HYDRO ONE NETWORKS INC. | B4: General Service Equal To Or Greater Than 1,500 kW - Interval Metered | I4: Distribution Wheeling Service Rate | L4: Total Loss Factor – Primary Metered Customer > 5,000 kW | N4: $/kW | O4: $/kVA | W4: SM_Rate_Adder | Z4: Account set up charge/change of occupancy charge (plus credit agency costs if applicable) | AA4: Clearance Pole Attachment charge $/pole/year | AB4: Total Loss Factor – Primary Metered Customer > 5,000 kW | AL4: Brantford Power Inc. | AM4: Brant County Power Inc. | AO4: FARMS - SINGLE PHASE ENERGY-BILLED [F1] | AP4: kWh | AT4: Standard Supply Service – Administration Charge (if applicable) | AW4: =AU4*AV4 -> 0 | AX4: 0 | AY4: 0 | AZ4: =AX4*AY4 -> 0 | BB4: =AZ4-AW4 -> 0 | BC4: =BB4/AW4 -> 
A5: ENERGY FROM WASTE SERVICE CLASSIFICATION | I5: Electricity Rate | L5: Total Loss Factor – Secondary Metered Customer | N5: $/kVA | W5: MSC_Rate_Rider_ | Z5: Arrears certificate | AA5: Collection of account charge – no disconnection | AB5: Total Loss Factor – Secondary Metered Customer | AL5: Burlington Hydro Inc. | AM5: Brantford Power Inc. | AO5: FARMS - THREE PHASE ENERGY-BILLED [F3] | AP5: kWh | AT5: Sub-Total: Regulatory | AW5: =SUM(AW2:AW4) -> 0 | AZ5: =SUM(AZ2:BA4) -> 0 | BB5: =AZ5-AW5 -> 0 | BC5: =BB5/AW5 -> 
A6: FIT SERVICE CLASSIFICATION | I6: Electricity Rate - All Additional kWh | L6: Total Loss Factor – Secondary Metered Customer < 5,000 kW | W6: VC | Z6: Arrears certificate (credit reference) | AA6: Collection of account charge – no disconnection – after regular hours | AB6: Total Loss Factor – Secondary Metered Customer < 5,000 kW | AL6: Canadian Niagara Power Inc. | AM6: Burlington Hydro Inc. | AO6: GENERAL SERVICE - COMMERCIAL | AP6: kW | AT6: Debt Retirement Charge (DRC) | AW6: =AU6*AV6 -> 0 | AX6: =AU6 -> 0 | AY6: =AV6 -> 0 | AZ6: =AX6*AY6 -> 0 | BB6: =AZ6-AW6 -> 0 | BC6: =BB6/AW6 -> 
A7: GENERAL SERVICE 1,000 KW AND GREATER SERVICE CLASSIFICATION | I7: Electricity Rate - First 250 kWh | AL7: Centre Wellington Hydro Ltd. | AM7: Cambridge and North Dumfries Hydro Inc. | AO7: GENERAL SERVICE - INSTITUTIONAL | AP7: kW
A8: GENERAL SERVICE 1,000 TO 4,999 KW (CO-GENERATION) SERVICE CLASSIFICATION | I8: Electricity Rate -All Additional kWh | L8: Total Loss Factor – Secondary Metered Customer > 5,000 kW | W8: VC_Rate_Rider_ | Z8: Charge to certify cheque | AA8: Collection of account charge – no disconnection - during regular business hours | AB8: Total Loss Factor – Secondary Metered Customer > 5,000 kW | AL8: Chapleau Public Utilities Corporation | AM8: Canadian Niagara Power Inc. | AO8: GENERAL SERVICE 1,000 TO 2,999 KW | AP8: kW | AT8: Total Bill on RPP (before taxes) | BB8: =AZ8-AW8 -> 0
A9: GENERAL SERVICE 1,000 TO 4,999 KW SERVICE CLASSIFICATION | I9: Electricity Rate First 1,000 kWh | L9: Distribution Loss Factor - Secondary Metered Customer < 5,000 kW | W9: VC_GA_Rate_Rider_kW_ | Z9: Collection of Account Charge – No Disconnection | AA9: Collection of account charge – no disconnection – during regular hours | AL9: Collus PowerStream Corp. | AM9: Centre Wellington Hydro Ltd. | AO9: GENERAL SERVICE 1,000 TO 4,999 KW | AP9: kW | AT9: HST | AW9: =AV9*AW8 -> 0 | AY9: =AV9 -> 0 | AZ9: =AY9*AZ8 -> 0 | BB9: =AZ9-AW9 -> 0 | BC9: =BB9/AW9 -> 
A10: GENERAL SERVICE 1,500 TO 4,999 KW SERVICE CLASSIFICATION | I10: Electricity Rate First 25,000 kWh | L10: Distribution Loss Factor - Secondary Metered Customer > 5,000 kW | W10: VC_LV_Rate | Z10: Credit Card Convenience Charge | AA10: Collection/Disconnection/Load Limiter/Reconnection – if in Community | AL10: Cooperative Hydro Embrun Inc. | AM10: Chapleau Public Utilities Corporation | AO10: GENERAL SERVICE 1,000 TO 4,999 KW - INTERVAL METERS | AP10: kW | AT10: Total Bill (including HST) | AW10: =AW9+AW8 -> 0 | AZ10: =AZ9+AZ8 -> 0 | BB10: =AZ10-AW10 -> 0 | BC10: =BB10/AW10 -> 
A11: GENERAL SERVICE 3,000 TO 4,999 KW - INTERMEDIATE USE SERVICE CLASSIFICATION | I11: Electricity Rate First 6,000 kWh | L11: Distribution Loss Factor - Primary Metered Customer < 5,000 kW | W11: RTSR_Network | Z11: Credit check (plus credit agency costs) | AA11: Credit Card Convenience Charge | AL11: E.L.K. Energy Inc. | AM11: Collus PowerStream Corporation | AO11: GENERAL SERVICE 1,000 TO 4,999 KW (CO-GENERATION) | AP11: kW | AT11: Ontario Clean Energy Benefit (OCEB) | AW11: =-0.1*AW10 -> 0 | AY11: =AV11 -> 0 | AZ11: =-0.1*AZ10 -> 0 | BB11: =AZ11-AW11 -> 0 | BC11: =BB11/AW11 -> 
A12: GENERAL SERVICE 3,000 TO 4,999 KW SERVICE CLASSIFICATION | I12: Electricity Rate Next 1,500 kWh | L12: Distribution Loss Factor - Primary Metered Customer > 5,000 kW | W12: RTSR_Connection | Z12: Credit reference Letter | AA12: Disconnect/Reconnect at meter – after regular hours | AL12: Energy+ Inc. | AM12: Cooperative Hydro Embrun Inc. | AO12: GENERAL SERVICE 1,500 TO 4,999 KW | AP12: kW | AT12: Total Bill on RPP (including OCEB) | AW12: =AW10+AW11 -> 0 | AZ12: =AZ10+AZ11 -> 0 | BB12: =AZ12-AW12 -> 0 | BC12: =BB12/AW12 -> 
A13: GENERAL SERVICE 50 TO 1,499 KW SERVICE CLASSIFICATION | I13: General Service 1,500 to 4,999 kW customer | AL13: Enersource Hydro Mississauga Inc. | AM13: E.L.K. Energy Inc. | AO13: GENERAL SERVICE 2,500 TO 4,999 KW | AP13: kW
A14: GENERAL SERVICE 50 TO 2,999 KW SERVICE CLASSIFICATION | I14: General Service 50 to 1,499 kW customer | L14: Total Loss Factor - Embedded Distributor | W14: RTSR_Network_Interval | Z14: Credit reference/credit check (plus credit agency costs – General Service) | AA14: Disconnect/Reconnect at meter – during regular hours | AL14: Entegrus Powerlines Inc. | AM14: Enersource Hydro Mississauga Inc. | AO14: GENERAL SERVICE 3,000 TO 4,999 KW | AP14: kW | AT14: Total Bill on TOU (before taxes) | BB14: =AZ14-AW14 -> 0
A15: GENERAL SERVICE 50 TO 4,999 KW SERVICE CLASSIFICATION | I15: General Service Large Use customer | L15: Total Loss Factor – Embedded Distributor – Hydro One Networks Inc. | W15: RTSR_Connection_Interval | Z15: Credit Reference/credit check (plus credit agency costs) | AA15: Disconnect/Reconnect at pole – after regular hours | AL15: EnWin Utilities Ltd. | AM15: Entegrus Powerlines Inc. | AO15: GENERAL SERVICE 3,000 TO 4,999 KW - INTERMEDIATE USE | AP15: kW | AT15: HST | AW15: =AV15*AW14 -> 0 | AY15: =AV15 -> 0 | AZ15: =AY15*AZ14 -> 0 | BB15: =AZ15-AW15 -> 0 | BC15: =BB15/AW15 -> 
A16: GENERAL SERVICE 50 TO 499 KW SERVICE CLASSIFICATION | I16: Green Energy Act Initiatives Funding Adder - effective until the date of the next cost of service-based rate order | W16: RTSR_Network_Interval_GR1000kW | Z16: Dispute Test – Commercial self contained -- MC | AA16: Disconnect/Reconnect at pole – during regular hours | AL16: Erie Thames Powerlines Corporation | AM16: Entegrus Powerlines Inc. - Dutton Service Area | AO16: GENERAL SERVICE 3,000 TO 4,999 KW - INTERVAL METERED | AP16: kW | AT16: Total Bill (including HST) | AW16: =AW15+AW14 -> 0 | AZ16: =AZ15+AZ14 -> 0 | BB16: =AZ16-AW16 -> 0 | BC16: =BB16/AW16 -> 
A17: GENERAL SERVICE 50 TO 699 KW SERVICE CLASSIFICATION | I17: Green Energy Act Plan Funding Adder | W17: RTSR_Connection_Interval_GR1000kW | Z17: Dispute Test – Commercial TT -- MC | AA17: Disconnect/Reconnect Charge – At Meter – After Hours | AL17: Espanola Regional Hydro Distribution Corporation | AM17: Entegrus Powerlines Inc. - former Chatham-Kent Hydro Service Area | AO17: GENERAL SERVICE 3,000 TO 4,999 KW - TIME OF USE | AP17: kW | AT17: Ontario Clean Energy Benefit (OCEB) | AW17: =-0.1*AW16 -> 0 | AY17: =AV17 -> 0 | AZ17: =-0.1*AZ16 -> 0 | BB17: =AZ17-AW17 -> 0 | BC17: =BB17/AW17 -> 
A18: GENERAL SERVICE 50 TO 999 KW SERVICE CLASSIFICATION | I18: Green Energy Act Plan Funding Adder - effective April 1, 2013 until March 31, 2014 | W18: RTSR_Line_Connection | Z18: Dispute Test – Residential | AA18: Disconnect/Reconnect Charge – At Meter – During Regular Hours | AL18: Essex Powerlines Corporation | AM18: Entegrus Powerlines Inc. - Newbury Service Area | AO18: GENERAL SERVICE 50 TO 1,000 KW | AP18: kW | AT18: Total Bill on TOU (including OCEB) | AW18: =AW16+AW17 -> 0 | AZ18: =AZ16+AZ17 -> 0 | BB18: =AZ18-AW18 -> 0 | BC18: =BB18/AW18 -> 
A19: GENERAL SERVICE 500 TO 1,499 KW SERVICE CLASSIFICATION | I19: Green Energy Act Plan Funding Adder - effective April 1, 2014 until March 31, 2015 | W19: RTSR_Transformer_Connection | Z19: Duplicate Invoices for previous billing | AA19: Disconnect/Reconnect Charge – At Pole – After Hours | AL19: Festival Hydro Inc. | AM19: Entegrus Powerlines Inc. - Strathroy, Mount Brydges and Parkhill Service Areas | AO19: GENERAL SERVICE 50 TO 1,000 KW - INTERVAL METERS | AP19: kW
A20: GENERAL SERVICE 500 TO 4,999 KW SERVICE CLASSIFICATION | I20: ICM Rate Rider (2014) - in effect until the effective date of the next cost of service rates | W20: WMSR | Z20: Easement Letter | AA20: Disconnect/Reconnect Charge – At Pole – During Regular Hours | AL20: Fort Frances Power Corporation | AM20: ENWIN Utilities Ltd. | AO20: GENERAL SERVICE 50 TO 1,000 KW - NON INTERVAL METERS | AP20: kW
A21: GENERAL SERVICE 700 TO 4,999 KW SERVICE CLASSIFICATION | I21: Low Voltage Service Charge | W21: RRRP | Z21: Income Tax Letter | AA21: Disconnect/Reconnect Charges for non payment of account - At Meter After Hours | AL21: Greater Sudbury Hydro Inc. | AM21: Erie Thames Powerlines Corporation | AO21: GENERAL SERVICE 50 TO 1,499 KW | AP21: kW
A22: GENERAL SERVICE EQUAL TO OR GREATER THAN 1,500 KW SERVICE CLASSIFICATION | I22: Low Voltage Service Rate | W22: SPC | Z22: Interval Meter Interrogation | AA22: Disconnect/Reconnect charges for non payment of account – at meter after regular hours | AL22: Grimsby Power Incorporated | AM22: Espanola Regional Hydro Distribution Corporation | AO22: GENERAL SERVICE 50 TO 1,499 KW - INTERVAL METERED | AP22: kW
A23: GENERAL SERVICE GREATER THAN 1,000 kW SERVICE CLASSIFICATION | I23: Low Voltage Volumetric Rate | W23: DRC | Z23: Interval meter request change | AA23: Disconnect/Reconnect Charges for non payment of account - At Meter During Regular Hours | AL23: Guelph Hydro Electric Systems Inc. | AM23: Essex Powerlines Corporation | AO23: GENERAL SERVICE 50 TO 2,499 KW | AP23: kW
A24: GENERAL SERVICE LESS THAN 50 KW SERVICE CLASSIFICATION | I24: LRAM Rate Rider - Effective Until April 30, 2015 | W24: SSS | Z24: Legal letter | AA24: Disconnect/Reconnect charges for non payment of account – at meter during regular hours | AL24: Halton Hills Hydro Inc. | AM24: Festival Hydro Inc. | AO24: GENERAL SERVICE 50 TO 2,999 KW | AP24: kW
A25: HCI, RESOP, Other Energy Resource SERVICE CLASSIFICATION | I25: Minimum Distribution Charge - per KW of maximum billing demand in the previous 11 months | W25: SFLF | Z25: Legal letter charge | AA25: Disconnect/Reconnect charges for non payment of account – at pole after regular hours | AL25: Hearst Power Distribution Company Ltd. | AM25: Fort Frances Power Corporation | AO25: GENERAL SERVICE 50 TO 2,999 KW - INTERVAL METERED | AP25: kW
A26: INTERMEDIATE USER SERVICE CLASSIFICATION | B26: January | I26: Monthly Distribution Wheeling Service Rate - Dedicated LV Line | W26: DLF_Secondary_LT_5000kW | Z26: Meter dispute charge plus Measurement Canada fees (if meter found correct) | AA26: Disconnect/Reconnect charges for non payment of account – at pole during regular hours | AL26: Horizon Utilities Corporation | AM26: Greater Sudbury Hydro Inc. | AO26: GENERAL SERVICE 50 TO 2,999 KW - TIME OF USE | AP26: kW
A27: LARGE USE - 3TS SERVICE CLASSIFICATION | B27: February | I27: Monthly Distribution Wheeling Service Rate - Hydro One Networks | W27: DLF_Secondary_GT_5000kW | Z27: Notification charge | AA27: Disconnect/Reconnection for >300 volts - after regular hours | AL27: Hydro 2000 Inc. | AM27: Grimsby Power Inc. | AO27: GENERAL SERVICE 50 TO 4,999 KW | AP27: kW
A28: LARGE USE - FORD ANNEX SERVICE CLASSIFICATION | B28: March | I28: Monthly Distribution Wheeling Service Rate - Shared LV Line | W28: DLF_Primary_LT_5000kW | Z28: Pulling Post Dated Cheques | AA28: Disconnect/Reconnection for >300 volts - during regular hours | AL28: Hydro Hawkesbury Inc. | AM28: Guelph Hydro Electric Systems Inc. | AO28: GENERAL SERVICE 50 TO 4,999 KW - INTERVAL METERED | AP28: kW
A29: LARGE USE - REGULAR SERVICE CLASSIFICATION | B29: April | I29: Monthly Distribution Wheeling Service Rate - Waterloo North Hydro | W29: DLF_Primary_GT_5000kW | Z29: Request for other billing information | AA29: Disposal of Concrete Poles | AL29: Hydro One Brampton Networks Inc. | AM29: Haldimand County Hydro Inc. | AO29: GENERAL SERVICE 50 TO 4,999 KW - TIME OF USE | AP29: kW
A30: LARGE USE SERVICE CLASSIFICATION | B30: May | I30: Rate Rider for Application of Tax Change - effective until April 30, 2015 | W30: TLF_Secondary_LT_5000kW | Z30: Returned cheque (plus bank charges) | AA30: Dispute Test – Commercial TT -- MC | AL30: Hydro One Networks Inc. | AM30: Halton Hills Hydro Inc. | AO30: GENERAL SERVICE 50 TO 4,999 KW (COGENERATION) | AP30: kW
A31: LARGE USE WITH DEDICATED ASSETS SERVICE CLASSIFICATION | B31: June | I31: Rate Rider for Application of Tax Change - effective until December 31, 2014 | W31: TLF_Secondary_GT_5000kW | Z31: Returned cheque charge (plus bank charges) | AA31: Install/Remove load control device – after regular hours | AL31: Hydro Ottawa Limited | AM31: Hearst Power Distribution Company Limited | AO31: GENERAL SERVICE 50 TO 4,999 KW (FORMERLY TIME OF USE) | AP31: kW
A32: Micro-FIT and Micro-Net-Metering SERVICE CLASSIFICATION | B32: July | I32: Rate Rider for Application of Tax Change (2014) - effective until April 30, 2015 | W32: TLF_Primary_LT_5000kW | Z32: Special Billing Service (aggregation) | AA32: Install/Remove load control device – during regular hours | AL32: InnPower Corporation | AM32: Horizon Utilities Corporation | AO32: GENERAL SERVICE 50 TO 499 KW | AP32: kW
A33: microFIT GENERATOR SERVICE CLASSIFICATION | B33: August | I33: Rate Rider for Application of Tax Change (per connection) - effective until April 30, 2015 | W33: TLF_Primary_GT_5000kW | Z33: Special Billing Service (sub-metering charge per meter) | AA33: Interval Meter Interrogation | AL33: Kenora Hydro Electric Corporation Ltd. | AM33: Hydro 2000 Inc. | AO33: GENERAL SERVICE 50 TO 699 KW | AP33: kW
A34: microFIT SERVICE CLASSIFICATION | B34: September | I34: Rate Rider for CGAAP Accounting Changes (2013) - effective until April 30, 2017 | W34: TLF_EmbeddedDistributor | Z34: Special meter reads | AA34: Interval Meter Load Management Tool Charge $/month | AL34: Kingston Hydro Corporation | AM34: Hydro Hawkesbury Inc. | AO34: GENERAL SERVICE 50 TO 999 KW | AP34: kW
A35: RESIDENTIAL - R1 SERVICE CLASSIFICATION | B35: October | I35: Rate Rider for Deferral/Variance Account (2012) - effective unitl April 30, 2016 | Z35: Statement of Account | AA35: Interval meter request change | AL35: Kitchener-Wilmot Hydro Inc. | AM35: Hydro One Brampton Networks Inc. | AO35: GENERAL SERVICE 50 TO 999 KW - INTERVAL METERED | AP35: kW
A36: RESIDENTIAL - R2 SERVICE CLASSIFICATION | B36: November | I36: Rate Rider for Deferral/Variance Account Disposition – effective until April 30, 2015 | Z36: Unprocessed Payment Charge (plus bank charges) | AA36: Late Payment – per annum | AL36: Lakefront Utilities Inc. | AM36: Hydro One Networks Inc. | AO36: GENERAL SERVICE 500 TO 4,999 KW | AP36: kW
A37: RESIDENTIAL SERVICE CLASSIFICATION | B37: December | I37: Rate Rider for Deferral/Variance Account Disposition (2012) - effective until April 30, 2016 | AA37: Late Payment – per month | AL37: Lakeland Power Distribution Ltd. | AM37: Hydro Ottawa Limited | AO37: GENERAL SERVICE 700 TO 4,999 KW | AP37: kW
A38: SEASONAL CUSTOMERS SERVICE CLASSIFICATION | I38: Rate Rider for Deferral/Variance Account Disposition (2013) - effective until April 30, 2014 | AA38: Layout fees | AL38: London Hydro Inc. | AM38: Innisfil Hydro Distribution Systems Limited | AO38: GENERAL SERVICE DEMAND BILLED (50 KW AND ABOVE) [GSD] | AP38: kW
A39: SEASONAL RESIDENTIAL SERVICE CLASSIFICATION | I39: Rate Rider for Deferral/Variance Account Disposition (2014) - effective until April 28, 2016 | AA39: Meter dispute charge plus Measurement Canada fees (if meter found correct) | AL39: Midland Power Utility Corporation | AM39: Kenora Hydro Electric Corporation Ltd. | AO39: GENERAL SERVICE ENERGY BILLED (LESS THAN 50 KW) [GSE-METERED] | AP39: kWh
A40: SENTINEL LIGHTING SERVICE CLASSIFICATION | I40: Rate Rider for Deferral/Variance Account Disposition (2014) - effective until April 30, 2015 | AA40: Meter Interrogation Charge | AL40: Milton Hydro Distribution Inc. | AM40: Kingston Hydro Corporation | AO40: GENERAL SERVICE ENERGY BILLED (LESS THAN TO 50 KW) [GSE-UNMETERED] | AP40: kWh
A41: STANDBY DISTRIBUTION SERVICE CLASSIFICATION | I41: Rate Rider for Deferral/Variance Account Disposition (2014) - effective until December 31, 2014 | AA41: Missed Service Appointment | AL41: Newmarket - Tay Power Distribution Ltd. | AM41: Kitchener-Wilmot Hydro Inc. | AO41: GENERAL SERVICE EQUAL TO OR GREATER THAN 1,500 KW | AP41: kW
A42: STANDBY POWER SERVICE CLASSIFICATION | I42: Rate Rider for Deferral/Variance Account Disposition (2014) - effective until December 31, 2015 | AA42: Norfolk Pole Rentals – Billed | AL42: Niagara Peninsula Energy Inc. | AM42: Lakefront Utilities Inc. | AO42: GENERAL SERVICE EQUAL TO OR GREATER THAN 1,500 KW - INTERVAL METERED | AP42: kW
A43: STANDBY POWER SERVICE CLASSIFICATION | I43: Rate Rider for Deferral/Variance Account Dispositon (2012) - effective until April 30, 2016 | AA43: Optional Interval/TOU Meter charge $/month | AL43: Niagara-on-the-Lake Hydro Inc. | AM43: Lakeland Power Distribution Ltd. | AO43: GENERAL SERVICE GREATER THAN 1,000 KW | AP43: kW
A44: STREET LIGHTING SERVICE CLASSIFICATION | I44: Rate Rider for Disposition of Accounting Changes Under CGAAP Account 1576 - effective until April 30, 2016 | AA44: Overtime Locate | AL44: North Bay Hydro Distribution Limited | AM44: London Hydro Inc. | AO44: GENERAL SERVICE GREATER THAN 50 kW - WMP | AP44: kW
A45: UNMETERED SCATTERED LOAD SERVICE CLASSIFICATION | I45: Rate Rider for Disposition of Deferral/Variance Accounts (2010) - effective until December 31, 2014 | AA45: Owner Requested Disconnection/Reconnection – after regular hours | AL45: Northern Ontario Wires Inc. | AM45: Midland Power Utility Corporation | AO45: GENERAL SERVICE INTERMEDIATE 1,000 TO 4,999 KW | AP45: kW
I46: Rate Rider for Disposition of Deferral/Variance Accounts (2011) - effective until April 30, 2015 | AA46: Owner Requested Disconnection/Reconnection – during regular hours | AL46: Oakville Hydro Electricity Distribution Inc. | AM46: Milton Hydro Distribution Inc. | AO46: GENERAL SERVICE INTERMEDIATE RATE CLASS 1,000 TO 4,999 KW (FORMERLY GENERAL SERVICE > 50 KW CUSTOMERS) | AP46: kW
I47: Rate Rider for Disposition of Deferral/Variance Accounts (2011) - effective until April 30, 2016 | AA47: Returned cheque (plus bank charges) | AL47: Orangeville Hydro Limited | AM47: Newmarket - Tay Power Distribution Ltd. | AO47: GENERAL SERVICE INTERMEDIATE RATE CLASS 1,000 TO 4,999 KW (FORMERLY LARGE USE CUSTOMERS) | AP47: kW
I48: Rate Rider for Disposition of Deferral/Variance Accounts (2012) - effective until April 30, 2014 | AA48: Rural system expansion / line connection fee | AL48: Orillia Power Distribution Corporation | AM48: Niagara Peninsula Energy Inc. | AO48: GENERAL SERVICE LESS THAN 50 KW | AP48: kWh
I49: Rate Rider for Disposition of Deferral/Variance Accounts (2012) - effective until April 30, 2015 | AA49: Same Day Open Trench | AL49: Oshawa PUC Networks Inc. | AM49: Niagara-on-the-Lake Hydro Inc. | AO49: GENERAL SERVICE LESS THAN 50 KW - SINGLE PHASE ENERGY-BILLED [G1] | AP49: kWh
I50: Rate Rider for Disposition of Deferral/Variance Accounts (2012) - effective until April 30, 2016 | AA50: Scheduled Day Open Trench | AL50: Ottawa River Power Corporation | AM50: Norfolk Power Distribution Inc. | AO50: GENERAL SERVICE LESS THAN 50 KW - THREE PHASE ENERGY-BILLED [G3] | AP50: kWh
I51: Rate Rider for Disposition of Deferral/Variance Accounts (2012) - effective until August 31, 2014 | AA51: Service call – after regular hours | AL51: Peterborough Distribution Incorporated | AM51: North Bay Hydro Distribution Limited | AO51: GENERAL SERVICE LESS THAN 50 KW - TRANSMISSION CLASS ENERGY-BILLED [T] | AP51: kWh
I52: Rate Rider for Disposition of Deferral/Variance Accounts (2012) - effective until December 31, 2015 | AA52: Service call – customer owned equipment | AL52: PowerStream Inc. | AM52: Northern Ontario Wires Inc. | AO52: GENERAL SERVICE LESS THAN 50 KW - URBAN ENERGY-BILLED [UG] | AP52: kWh
I53: Rate Rider for Disposition of Deferral/Variance Accounts (2012) - effective until December 31, 2016 Applicable only in the former service area of Clinton Power | AA53: Service Call – Customer-owned Equipment – After Regular Hours | AL53: PUC Distribution Inc. | AM53: Oakville Hydro Electricity Distribution Inc. | AO53: GENERAL SERVICE SINGLE PHASE - G1 | AP53: kW
I54: Rate Rider for Disposition of Deferral/Variance Accounts (2012) – effective until December 31, 2016 Applicable only in the former service area of Clinton Power | AA54: Service Call – Customer-owned Equipment – During Regular Hours | AL54: Renfrew Hydro Inc. | AM54: Orangeville Hydro Limited | AO54: GENERAL SERVICE THREE PHASE - G3 | AP54: kW
I55: Rate Rider for Disposition of Deferral/Variance Accounts (2012) - effective until January 31, 2014 | AA55: Service Charge for onsite interrogation of interval meter due to customer phone line failure - required weekly until line repaired $ 6 | AL55: Rideau St. Lawrence Distribution Inc. | AM55: Orillia Power Distribution Corporation | AO55: INTERMEDIATE USERS | AP55: kW
I56: Rate Rider for Disposition of Deferral/Variance Accounts (2012) - effective until June 30, 2014 | AA56: Service Layout - Commercial | AL56: Sioux Lookout Hydro Inc. | AM56: Oshawa PUC Networks Inc. | AO56: INTERMEDIATE WITH SELF GENERATION | AP56: kW
I57: Rate Rider for Disposition of Deferral/Variance Accounts (2013) - Applicable only to Wholesale Market Participants - effective until April 30, 2015 | AA57: Service Layout - ResidentiaI | AL57: St. Thomas Energy Inc. | AM57: Ottawa River Power Corporation | AO57: LARGE USE | AP57: kW
I58: Rate Rider for Disposition of Deferral/Variance Accounts (2013) - effective until April 30, 2014 | AA58: Special Billing Service (sub-metering charge per meter) | AL58: Thunder Bay Hydro Electricity Distribution Inc. | AM58: Parry Sound Power Corporation | AO58: LARGE USE - 3TS | AP58: kW
I59: Rate Rider for Disposition of Deferral/Variance Accounts (2013) - effective until April 30, 2015 | AA59: Special meter reads | AL59: Tillsonburg Hydro Inc. | AM59: Peterborough Distribution Incorporated | AO59: LARGE USE - FORD ANNEX | AP59: kW
I60: Rate Rider for Disposition of Deferral/Variance Accounts (2013) - effective until April 30, 2015 - not applicable to Wholesale Market Participants | AA60: Specific Charge for Access to the Power Poles - $/pole/year | AL60: Toronto Hydro-Electric System Limited | AM60: PowerStream Inc. | AO60: LARGE USE - REGULAR | AP60: kW
I61: Rate Rider for Disposition of Deferral/Variance Accounts (2013) - effective until April 30, 2017 | AA61: Specific Charge for Bell Canada Access to the Power Poles – per pole/year | AL61: Veridian Connections Inc. | AM61: PUC Distribution Inc. | AO61: LARGE USE > 5000 KW | AP61: kW
I62: Rate Rider for Disposition of Deferral/Variance Accounts (2013) - effective until August 31, 2014 | AA62: Switching for company maintenance – Charge based on Time and Materials | AL62: Wasaga Distribution Inc. | AM62: Renfrew Hydro Inc. | AO62: microFIT | AP62: $
I63: Rate Rider for Disposition of Deferral/Variance Accounts (2013) - effective until December 31, 2014 | AA63: Temporary Service – Install & remove – overhead – no transformer | AL63: Waterloo North Hydro Inc. | AM63: Rideau St. Lawrence Distribution Inc. | AO63: RESIDENTIAL | AP63: kWh
I64: Rate Rider for Disposition of Deferral/Variance Accounts (2013) - effective until May 31, 2014 | AA64: Temporary Service – Install & remove – overhead – with transformer | AL64: Welland Hydro-Electric System Corp. | AM64: Sioux Lookout Hydro Inc. | AO64: RESIDENTIAL - HENSALL | AP64: kWh
I65: Rate Rider for Disposition of Deferral/Variance Accounts (2014) - effective until December 31, 2015 | AA65: Temporary Service – Install & remove – underground – no transformer | AL65: Wellington North Power Inc. | AM65: St. Thomas Energy Inc. | AO65: RESIDENTIAL - HIGH DENSITY [R1] | AP65: kWh
I66: Rate Rider for Disposition of Deferred PILs Variance Account 1562 - effective until March 31, 2016 | AA66: Temporary service install & remove – overhead – no transformer | AL66: West Coast Huron Energy Inc. | AM66: Thunder Bay Hydro Electricity Distribution Inc. | AO66: RESIDENTIAL - LOW DENSITY [R2] | AP66: kWh
I67: Rate Rider for Disposition of Deferred PILs Variance Account 1562 (2012) - effective until April 30, 2015 | AA67: Temporary Service Install & Remove – Overhead – With Transformer | AL67: Westario Power Inc. | AM67: Tillsonburg Hydro Inc. | AO67: RESIDENTIAL - MEDIUM DENSITY [R1] | AP67: kWh
I68: Rate Rider for Disposition of Deferred PILs Variance Account 1562 (2012) - effective until April 30, 2016 | AA68: Temporary Service Install & Remove – Underground – No Transformer | AL68: Whitby Hydro Electric Corporation | AM68: Toronto Hydro-Electric System Limited | AO68: RESIDENTIAL - NORMAL DENSITY [R2] | AP68: kWh
I69: Rate Rider for Disposition of Deferred PILs Variance Account 1562 (2nd Installment - 2012) - effective until April 30, 2016 | AA69: Temporary service installation and removal – overhead – no transformer | AM69: Veridian Connections Inc. | AO69: RESIDENTIAL - TIME OF USE | AP69: kWh
I70: Rate Rider for Disposition of Deferred PILs Variance Account 1562 (per connection) (2012) - effective until April 30, 2015 | AA70: Temporary service installation and removal – overhead – with transformer | AM70: Wasaga Distribution Inc. | AO70: RESIDENTIAL - URBAN [UR] | AP70: kWh
I71: Rate Rider for Disposition of Deferred PILs Variance Account 1562 (per connection) (2012) - effective until April 30, 2016 | AA71: Temporary service installation and removal – underground – no transformer | AM71: Waterloo North Hydro Inc. | AO71: RESIDENTIAL REGULAR | AP71: kWh
I72: Rate Rider for Disposition of Global Adjustment Sub-Account (2011) - effective until April 30, 2015 Applicable only for Non-RPP Customers | AM72: Welland Hydro-Electric System Corp. | AO72: RESIDENTIAL SUBURBAN | AP72: kWh
I73: Rate Rider for Disposition of Global Adjustment Sub-Account (2011) - effective until April 30, 2016 Applicable only for Non-RPP Customers | AM73: Wellington North Power Inc. | AO73: RESIDENTIAL SUBURBAN SEASONAL | AP73: kWh
I74: Rate Rider for Disposition of Global Adjustment Sub-Account (2012) - effective until April 30, 2014 Applicable only for Non-RPP Customers | AM74: West Coast Huron Energy Inc. | AO74: RESIDENTIAL SUBURBAN YEAR ROUND | AP74: kWh
I75: Rate Rider for Disposition of Global Adjustment Sub-Account (2012) - effective until April 30, 2015 Applicable only for Non-RPP Customers | AM75: Westario Power Inc. | AO75: RESIDENTIAL URBAN | AP75: kWh
I76: Rate Rider for Disposition of Global Adjustment Sub-Account (2012) - effective until April 30, 2015 Applicatble only for Non-RPP Customers | AM76: Whitby Hydro Electric Corporation | AO76: RESIDENTIAL URBAN YEAR-ROUND | AP76: kWh
I77: Rate Rider for Disposition of Global Adjustment Sub-Account (2012) - effective until April 30, 2016 Applicable only for Non-RPP Customers | AM77: Woodstock Hydro Services Inc. | AO77: SEASONAL RESIDENTIAL | AP77: kWh
I78: Rate Rider for Disposition of Global Adjustment Sub-Account (2012) - effective until January 31, 2014. Applicable only for Non-RPP Customers | AO78: SEASONAL RESIDENTIAL - HIGH DENSITY [R3] | AP78: kWh
I79: Rate Rider for Disposition of Global Adjustment Sub-Account (2012) - effective until June 30, 2014 Applicable only for Non-RPP Customers | AO79: SEASONAL RESIDENTIAL - NORMAL DENSITY [R4] | AP79: kWh
I80: Rate Rider for Disposition of Global Adjustment Sub-Account (2012) Applicable only for Non-RPP Customers - effective until August 31, 2014 | AO80: SENTINEL LIGHTING | AP80: kW
I81: Rate Rider for Disposition of Global Adjustment Sub-Account (2012) Applicable only to Non-RPP Customers - effective until August 31, 2014 | AO81: SMALL COMMERCIAL AND USL - PER CONNECTION | AP81: kWh
I82: Rate Rider for Disposition of Global Adjustment Sub-Account (2013) - effective until April 30, 2014 Applicable only for Non-RPP Customers | AO82: SMALL COMMERCIAL AND USL - PER METER | AP82: kWh
I83: Rate Rider for Disposition of Global Adjustment Sub-Account (2013) - effective until April 30, 2015 Applicable only for Non-RPP Customers | AO83: STANDARD A GENERAL SERVICE AIR ACCESS | AP83: kWh
I84: Rate Rider for Disposition of Global Adjustment Sub-Account (2013) - effective until April 30, 2015 Applicable only for Non-RPP Customers and excluding Wholesale Market Participants | AO84: STANDARD A GENERAL SERVICE ROAD/RAIL | AP84: kWh
I85: Rate Rider for Disposition of Global Adjustment Sub-Account (2013) - effective until April 30, 2017 Applicable only for Non-RPP Customers | AO85: STANDARD A GRID CONNECTED | AP85: kWh
I86: Rate Rider For Disposition of Global Adjustment Sub-Account (2013) - effective until August 31, 2014 Applicable only for Non-RPP Customers | AO86: STANDARD A RESIDENTIAL AIR ACCESS | AP86: kWh
I87: Rate Rider for Disposition of Global Adjustment Sub-Account (2013) - effective until December 31, 2014 Applicable only for Non-RPP Customers | AO87: STANDARD A RESIDENTIAL ROAD/RAIL | AP87: kWh
I88: Rate Rider for Disposition of Global Adjustment Sub-Account (2013) - effective until May 31, 2014 Applicable only for Non-RPP Customers | AO88: STANDBY - GENERAL SERVICE 1,000 - 5,000 KW | AP88: kW
I89: Rate Rider for Disposition of Global Adjustment Sub-Account (2014) - effective until December 31, 2014. Applicable only for Non-RPP - Class B Customers | AO89: STANDBY - GENERAL SERVICE 50 - 1,000 KW | AP89: kW
I90: Rate Rider for Disposition of Global Adjustment Sub-Account (2014) - effective until December 31, 2014. Applicable only for Non-RPP Customers | AO90: STANDBY - LARGE USE | AP90: kW
I91: Rate Rider for Disposition of Global Adjustment Sub-Account (2014) - effective until December 31, 2014. Applicable only for Non-RPP Customers - Class A Customers | AO91: STANDBY DISTRIBUTION SERVICE | AP91: kW
I92: Rate Rider for Disposition of Global Adjustment Sub-Account (2014) - effective until December 31, 2014. Applicable only for Non-RPP Customers - Interval Metered | AO92: STANDBY POWER | AP92: kW
I93: Rate Rider for Disposition of Global Adjustment Sub-Account (2014) - effective until December 31, 2014. Applicable only for Non-RPP Customers - Non Interval Metered | AO93: STANDBY POWER - APPROVED ON AN INTERIM BASIS | AP93: kW
I94: Rate Rider for Disposition of Global Adjustment Sub-Account (2014) - effective until December 31, 2015. Applicable only for Non-RPP Customers. | AO94: STANDBY POWER GENERAL SERVICE 1,500 TO 4,999 KW | AP94: kW
I95: Rate Rider for Disposition of Post Retirement Actuarial Gain - effective until March 31, 2025 | AO95: STANDBY POWER GENERAL SERVICE 50 TO 1,499 KW | AP95: kW
I96: Rate Rider for Disposition of Residual Hisotrical Smart Meter Costs - effective until April 30, 2015 | AO96: STANDBY POWER GENERAL SERVICE LARGE USE | AP96: kW
I97: Rate Rider for Disposition of Residual Hisotrical Smart Meter Costs - effective until April 30, 2017 | AO97: STREET LIGHTING | AP97: kW
I98: Rate Rider for Disposition of Residual Historical Smart Meter Costs - effective until April 30, 2014 | AO98: SUB TRANSMISSION [ST] | AP98: kW
I99: Rate Rider for Disposition of Residual Historical Smart Meter Costs - effective until April 30, 2016 | AO99: UNMETERED SCATTERED LOAD | AP99: kWh
I100: Rate Rider for Disposition of Residual Historical Smart Meter Costs - effective until August 31, 2014 | AO100: URBAN GENERAL SERVICE DEMAND BILLED (50 KW AND ABOVE) [UGD] | AP100: kW
I101: Rate Rider for Disposition of Residual Historical Smart Meter Costs - effective until August 31, 2015 | AO101: URBAN GENERAL SERVICE ENERGY BILLED (LESS THAN 50 KW) [UGE] | AP101: kWh
I102: Rate Rider for Disposition of Residual Historical Smart Meter Costs - effective until December 31, 2014 | AO102: WESTPORT SEWAGE TREATMENT PLANT | AP102: kW
I103: Rate Rider for Disposition of Residual Historical Smart Meter Costs – effective until December 31, 2014 | AO103: YEAR-ROUND RESIDENTIAL - R2 | AP103: kWh
I104: Rate Rider for Disposition of Residual Historical Smart Meter Costs - effective until December 31, 2015
I105: Rate Rider for Disposition of Residual Historical Smart Meter Costs - effective until December 31, 2016
I106: Rate Rider for Disposition of Residual Historical Smart Meter Costs - effective until October 31, 2014
I107: Rate Rider for Disposition of Residual Historical Smart Meter Costs - effective until September 30, 2014
I108: Rate Rider for Disposition of Residual Historical Smart Meter Costs - Non-Interval Metered - effective until April 30, 2014
I109: Rate Rider for Disposition of Residual Historical Smart Meter Costs 2 - in effect until the effective date of the next cost of service-based rate order
I110: Rate Rider for Disposition of Residual Historical Smart Meter Costs 3 - in effect until the effective date of the next cost of service-based rate order
I111: Rate Rider for Disposition of Residual Incremental Historical Smart Meter Costs - effective until August 31, 2015
I112: Rate Rider for Disposition of Stranded Meter costs - effective until April 30, 2015
I113: Rate Rider for Disposition of Stranded Meter Costs - effective until April 30, 2016
I114: Rate Rider for Disposition of Stranded Meter Costs - effective until April 30, 2017
I115: Rate Rider for Global Adjustment Sub Account Disposition - effective until April 30, 2016 Applicable only for Non RPP Customers
I116: Rate Rider for Global Adjustment Sub-Account Disposition (2014) - effective until April 28, 2016 Applicable only for Non-RPP Customers
I117: Rate Rider for Global Adjustment Sub-Account Disposition (2014) - effective until April 30, 2015 Applicable only for Non-RPP Customers
I118: Rate Rider for Global Adjustment Sub-Account Disposition (2014) - effective until December 30, 2015 Applicable only for Non-RPP Customers
I119: Rate Rider for Global Adjustment Sub-Account Disposition (2014) - effective until December 31, 2014 Applicable only for Non-RPP Customers
I120: Rate Rider for Global Adjustment Sub-Account Disposition (2014) - effective until December 31, 2015 Applicable only for Non-RPP Customers
I121: Rate Rider for Global Adjustment Sub-Account Disposition Applicable only for Non-RPP Customers - effective until April 30, 2015
I122: Rate Rider for Incremental Capital - Distribution Volumetric - effective until April 30, 2016
I123: Rate Rider for Incremental Capital - Service Charge - effective until April 30, 2016
I124: Rate Rider for Incremental Capital (2012) - effective until April 30, 2015
I125: Rate Rider for Lost Revenue Adjustment Mechanism Variance Account (LRAMVA) Recovery (2012 CDM Activities) - effective until April 30, 2015
I126: Rate Rider for Recover of Residual Historical Smart meter Costs - effective until June 30, 2014
I127: Rate Rider for Recovery of CGAAP/CWIP Differential - in effect until December 31, 2016
I128: Rate Rider for Recovery of Foregone Revenue - effective until April 30, 2015
I129: Rate Rider for Recovery of Forgone Revenue - effective until April 30, 2015
I130: Rate Rider for Recovery of Forgone Revenue - effective until December 31, 2014
I131: Rate Rider for Recovery of Green Energy Act related costs - effective until December 31, 2014
I132: Rate Rider for Recovery of Incremental Capital (2013) - in effect until the effective date of the next cost of service-based rate order
I133: Rate Rider for Recovery of Incremental Capital (2013) - in effect until the effective date of the next cost of service-based rate order
I134: Rate Rider for Recovery of Incremental Capital (2013) (per connection) - in effect until the effective date of the next cost of service-based rate order
I135: Rate Rider for Recovery of Incremental Capital (2013) (per connection)- in effect until the effective date of the next cost of service-based rate order
I136: Rate Rider for Recovery of Incremental Capital Costs
I137: Rate Rider for Recovery of Incremental Capital Costs - effective until April 30, 2015
I138: Rate Rider for Recovery of Incremental Capital Module Costs (2014) - in effect until the effective date of the next cost of service-based rate order
I139: Rate Rider for Recovery of Incremental Capital Module Costs (2014) - in effect until the effective date of the next cost of service-based rate order
I140: Rate Rider for Recovery of Lost Revenue Adjustment Mechanism ( LRAM)/Shared Savings Mechanism (SSM) (2012) - effective until August 31, 2014
I141: Rate Rider for Recovery of Lost Revenue Adjustment Mechanism (2013) - effective until December 31, 2014
I142: Rate Rider for Recovery of Lost Revenue Adjustment Mechanism (LRAM) - effective until April 30, 2016
I143: Rate Rider for Recovery of Lost Revenue Adjustment Mechanism (LRAM) (pre-2011 CDM Activities) - effective until April 30, 2015
I144: Rate Rider for Recovery of Lost Revenue Adjustment Mechanism (LRAM) (pre-2011 CDM Activities) (2013) - effective until April 30, 2015
I145: Rate Rider for Recovery of Lost Revenue Adjustment Mechanism (LRAM)/Shared Savings
I146: Rate Rider for Recovery of Lost Revenue Adjustment Mechanism (LRAM)/Shared Savings Mechanism (SSM) - effective until December 31, 2018 and applicable in the service area excluding the former service areas of Clinton Power and West Perth Power
I147: Rate Rider for Recovery of Lost Revenue Adjustment Mechanism (LRAM)/Shared Savings Mechanism (SSM) - effective until December 31, 2014 and applicable in the service area excluding the former service areas of Clinton Power and West Perth Power
I148: Rate Rider for Recovery of Lost Revenue Adjustment Mechanism (LRAM)/Shared Savings Mechanism (SSM) - effective until December 31, 2014 and applicable only in the former service area of Clinton Power
I149: Rate Rider for Recovery of Lost Revenue Adjustment Mechanism (LRAM)/Shared Savings Mechanism (SSM) - effective until December 31, 2014 and applicable only in the former service area of West Perth Power
I150: Rate Rider for Recovery of Lost Revenue Adjustment Mechanism (LRAM)/Shared Savings Mechanism (SSM) - effective until December 31, 2014 and applicable in the service area excluding the former service area of Clinton Power
I151: Rate Rider for Recovery of Lost Revenue Adjustment Mechanism (LRAM)/Shared Savings Mechanism (SSM) - effective until March 31, 2016
I152: Rate Rider for Recovery of Lost Revenue Adjustment Mechanism (LRAM)/Shared Savings Mechanism (SSM) (2012) - effective until August 31, 2014
I153: Rate Rider for Recovery of Lost Revenue Adjustment Mechanism (LRAM)/Shared Savings Mechanism (SSM) Recovery - effective until April 30, 2015
I154: Rate Rider for Recovery of Lost Revenue Adjustment Mechanism Variance Account (LRAMVA) (2014) - effective until April 30, 2015
I155: Rate Rider for Recovery of Residual Historical Smart Meter Costs - effective July 1, 2012 - April 30, 2016
I156: Rate Rider for Recovery of Smart Meter Incremental Revenue Requirement - effective until the date of the next cost of service-based rate order
I157: Rate Rider for Recovery of Smart Meter Incremental Revenue Requirement - effective until the effective date of the next cost of service-based rate order, or October 31, 2017, whichever occurs earlier
I158: Rate Rider for Recovery of Smart Meter Incremental Revenue Requirement - in effect until the effective date of the next cost of service-based rate order
I159: Rate Rider for Recovery of Smart Meter Incremental Revenue Requirement - Non-Interval Metered - in effect until the effective date of the next cost of service-based rate order
I160: Rate Rider for Recovery of Smart Meter Incremental Revenue Requirements - in effect until the effective date of the next cost of service application
I161: Rate Rider for Recovery of Smart Meter Stranded Assets - effective until April 30, 2016
I162: Rate Rider for Recovery of Storm Damage Costs - effective until August 31, 2017
I163: Rate Rider for Recovery of Stranded Assets - effective until April 30, 2016
I164: Rate Rider for Recovery of Stranded Meter Assets - effective July 1, 2012 - April 30, 2016
I165: Rate Rider for Recovery of Stranded Meter Assets – effective until April 30, 2015
I166: Rate Rider for Recovery of Stranded Meter Assets - effective until April 30, 2016
I167: Rate Rider for Recovery of Stranded Meter Assets - effective until April 30, 2017
I168: Rate Rider for Recovery of Stranded Meter Assets - effective until August 31, 2015
I169: Rate Rider for Recovery of Stranded Meter Assets - effective until August 31, 2017
I170: Rate Rider for Recovery of Stranded Meter Assets - effective until December 31, 2014
I171: Rate Rider for Recovery of Stranded Meter Assets - effective until December 31, 2015
I172: Rate Rider for Recovery of Stranded Meter Assets - effective until June 30, 2016
I173: Rate Rider for Recovery of Stranded Meter Assets - effective until March 31, 2016
I174: Rate Rider for Recovery of Stranded Meter Assets - effective until May 31, 2014
I175: Rate Rider for Reversal of Deferral/Variance Account Disposition (2011) - effective until April 30, 2015
I176: Rate Rider for Smart Meter Disposition - effective until April 30, 2016
I177: Rate Rider for Smart Meter Incremental Revenue Requirement - in effect until the effective date of the next cost of service-based rate order
I178: Rate Rider for Smart Metering Entity Charge - effective until October 31, 2018
I179: Rate Rider for Stranded Meter Cost Recovery - effective until April 30, 2017
I180: Rate Rider for Tax Change
I181: Rate Rider for Tax Change - effective until April 30, 2015
I182: Rate Rider for Tax Change (2014) - effective until April 30, 2015
I183: Retail Transmission Rate - Line and Transformation Connection Service Rate
I184: Retail Transmission Rate - Line and Transformation Connection Service Rate - (less than 1,000 kW)
I185: Retail Transmission Rate - Line and Transformation Connection Service Rate - Interval Metered
I186: Retail Transmission Rate - Line and Transformation Connection Service Rate - Interval Metered (1,000 to 4,999 kW)
I187: Retail Transmission Rate - Line and Transformation Connection Service Rate - Interval Metered (less than 1,000 kW)
I188: Retail Transmission Rate - Line and Transformation Connection Service Rate - Interval Metered < 1,000 kW
I189: Retail Transmission Rate - Line and Transformation Connection Service Rate FOR ALL SERVICE AREAS EXCEPT HENSALL
I190: Retail Transmission Rate - Line and Transformation Connection Service Rate - Interval Metered > 1,000 kW
I191: Retail Transmission Rate - Line Connection Service Rate
I192: Retail Transmission Rate - Network Service Rate
I193: Retail Transmission Rate - Network Service Rate - (less than 1,000 kW)
I194: Retail Transmission Rate - Network Service Rate - Interval Metered
I195: Retail Transmission Rate - Network Service Rate - Interval Metered (1,000 to 4,999 kW)
I196: Retail Transmission Rate - Network Service Rate - Interval Metered (less than 1,000 kW)
I197: Retail Transmission Rate - Network Service Rate - Interval Metered > 1,000 kW
I198: Retail Transmission Rate - Transformation Connection Service Rate
I199: Rider for Global Adjustment Sub-Account Disposition (2012) - effective until April 30, 2016 Applicable only for Non-RPP Customers
I200: Rural or Remote Electricity Rate Protection Charge (RRRP)
... 14 more rows

Sheet 3. Rate Class Selection
A12: Select the appropriate rate classes as they appear on your most recent Board-Approved Tariff of Rates and Charges, excluding the MicroFit Class.
A14: How many classes are on your most recent Board-Approved Tariff of Rates and Charges? | J14: 7
A16: Select Your Rate Classes from the Blue Cells below. Please ensure that a rate class is assigned to each shaded cell.
B18: Rate Class Classification | Q18: # of duplicates
A19: 1 | B19: RESIDENTIAL | P19: =COUNTIF($B$19:$J$40, B19) -> 1 | Q19: =COUNTIF(P19:P40, 2)/2 -> 0
A20: 2 | B20: GENERAL SERVICE LESS THAN 50 KW | P20: =COUNTIF($B$19:$J$40, B20) -> 1
A21: 3 | B21: GENERAL SERVICE 50 TO 4,999 KW SERVICE CLASSIFICATION | P21: 1
A22: 4 | B22: LARGE USE SERVICE CLASSIFICATION | P22: 1
A23: 5 | B23: UNMETERED SCATTERED LOAD SERVICE CLASSIFICATION | P23: 1
A24: 6 | B24: SENTINEL LIGHTING | P24: 1
A25: 7 | B25: STREET LIGHTING | P25: 1
P26: 0
P27: 0
P28: 0
P29: 0
P30: 0
P31: 0
P32: 0
P33: 0

Sheet 4. Hidden (hidden)
M1: Current Rate Classes | N1: Changed to Rate Classes | O1: Values in A that are NOT in B | P1: Values in B that are Not in A | Q1: Count of A | R1: Count of B
M2: RESIDENTIAL | N2: RESIDENTIAL | Q2: 3 | R2: 3
M3: STREET LIGHTING | N3: STREET LIGHTING
M4: STANDBY POWER | N4: STANDBY POWER
A24: RESIDENTIAL | B24: RESIDENTIAL Service Classification
A25: RESIDENTIAL
A26: RESIDENTIAL | B26: This classification refers to the supply of electrical energy to residential customers residing in detached, semi detached, town house (freehold or condominium) dwelling units, duplexes or triplexes. Suply will be limited up to a maximum of 200 amp @ 240/120 volt. Further servicing details are available in the distributor's Conditions of Service
A27: RESIDENTIAL
A28: RESIDENTIAL
A29: RESIDENTIAL
A30: RESIDENTIAL
A31: RESIDENTIAL
A32: RESIDENTIAL | B32: APPLICATION
A33: RESIDENTIAL
A34: RESIDENTIAL | B34: The application of these rates and charges shall be in accordance with the Licence of the Distributor and any Code or Order of the Board, and amendments thereto as approved by the Board, which may be applicable to the administration of this schedule.
A35: RESIDENTIAL
A36: RESIDENTIAL
A37: RESIDENTIAL | B37: No rates and charges for the distribution of electricity and charges to meet the costs of any work or service done or furnished for the purpose of the distribution of electricityshall be made except as prmitted by this schedule, unless required by the Distributor's Licence or a Code or Order of the Board, and amendments thereto as approved by the Board, or as specified herein.
A38: RESIDENTIAL
A39: RESIDENTIAL
A40: RESIDENTIAL
A41: RESIDENTIAL | B41: Unless specifically noted, this schedule does not contain any charges for the electricity commodity, be it under the Regulated Price Plan, a contract with a retailer or the wholesale market price, as applicable. In addition, the charges in the MONTHLY RATES AND CHARGES - Regulatory Component of this schedule fo not apply to a customer that is an embedded wholesale market participant.
A42: RESIDENTIAL
A43: RESIDENTIAL
A44: RESIDENTIAL | B44: It should be noted that this schedule does not list any charges, assessments or credits that are required by law to be invoiced by a distributor and that are not subject to Board approval, such as Debt Retirement Charge, the Global Adjustment, the Ontario Clean Energy Benefit and the HST.
A45: RESIDENTIAL
A46: RESIDENTIAL
A47: RESIDENTIAL
A48: RESIDENTIAL | B48: MONTHLY RATES AND CHARGES - Delivery Component (If applicable, Effective Date MUST be included in rate description)
A49: RESIDENTIAL | B49: Service Charge | H49: $ | I49: 19.94
A50: RESIDENTIAL | B50: Rate Rider for Recovery of Stranded Meter Assets – effective until April 30, 2015 | H50: $ | I50: 1.27
A51: RESIDENTIAL | B51: Rate Rider for Smart Metering Entity Charge - effective until October 31, 2018 | H51: $ | I51: 0.79
A52: RESIDENTIAL | B52: Distribution Volumetric Rate | H52: $/kWh | I52: 0.0146
A53: RESIDENTIAL | B53: Low Voltage Service Rate | H53: $/kWh | I53: 0.0034
A54: RESIDENTIAL | B54: Retail Transmission Rate - Network Service Rate | H54: $/kWh | I54: 0.006
A55: RESIDENTIAL | B55: Retail Transmission Rate - Line and Transformation Connection Service Rate | H55: $/kWh | I55: 0.0041
A56: RESIDENTIAL
A57: RESIDENTIAL
A58: RESIDENTIAL
A59: RESIDENTIAL
A60: RESIDENTIAL
A61: RESIDENTIAL
A62: RESIDENTIAL
A63: RESIDENTIAL
A64: RESIDENTIAL
A65: RESIDENTIAL
A66: RESIDENTIAL
A67: RESIDENTIAL
A68: RESIDENTIAL
A69: RESIDENTIAL
A70: RESIDENTIAL
A71: RESIDENTIAL
A72: RESIDENTIAL
A73: RESIDENTIAL
A74: RESIDENTIAL
A75: RESIDENTIAL
A76: RESIDENTIAL
A77: RESIDENTIAL
A78: RESIDENTIAL
A79: RESIDENTIAL | B79: MONTHLY RATES AND CHARGES - Regulatory Component
A80: RESIDENTIAL
A81: RESIDENTIAL | B81: Wholesale Market Service Rate | H81: $/kWh | I81: 0.0044
A82: RESIDENTIAL | B82: Rural or Remote Electricity Rate Protection Charge (RRRP) | H82: $/kWh | I82: 0.0013
A83: RESIDENTIAL | B83: Standard Supply Service - Administrative Charge (if applicable) | H83: $ | I83: 0.25
A84: RESIDENTIAL
A87: GENERAL SERVICE LESS THAN 50 KW | B87: GENERAL SERVICE LESS THAN 50 KW Service Classification
A88: GENERAL SERVICE LESS THAN 50 KW
A89: GENERAL SERVICE LESS THAN 50 KW | B89: This classification refers to a non-residential account taking electricity at 750 volts or less whose monthly peak demand is less than or is expected to be less than 50 kW. Further servicing details are available in the distributor's Conditions of Service.
A90: GENERAL SERVICE LESS THAN 50 KW
A91: GENERAL SERVICE LESS THAN 50 KW
A92: GENERAL SERVICE LESS THAN 50 KW
A93: GENERAL SERVICE LESS THAN 50 KW
A94: GENERAL SERVICE LESS THAN 50 KW
A95: GENERAL SERVICE LESS THAN 50 KW | B95: APPLICATION
A96: GENERAL SERVICE LESS THAN 50 KW
A97: GENERAL SERVICE LESS THAN 50 KW | B97: The application of these rates and charges shall be in accordance with the Licence of the Distributor and any Code or Order of the Board, and amendments thereto as approved by the Board, which may be applicable to the administration of this schedule.
A98: GENERAL SERVICE LESS THAN 50 KW
A99: GENERAL SERVICE LESS THAN 50 KW
A100: GENERAL SERVICE LESS THAN 50 KW | B100: No rates and charges for the distribution of electricity and charges to meet the costs of any work or service done or furnished for the purpose of the distribution of electricityshall be made except as prmitted by this schedule, unless required by the Distributor's Licence or a Code or Order of the Board, and amendments thereto as approved by the Board, or as specified herein.
A101: GENERAL SERVICE LESS THAN 50 KW
A102: GENERAL SERVICE LESS THAN 50 KW
A103: GENERAL SERVICE LESS THAN 50 KW
A104: GENERAL SERVICE LESS THAN 50 KW | B104: Unless specifically noted, this schedule does not contain any charges for the electricity commodity, be it under the Regulated Price Plan, a contract with a retailer or the wholesale market price, as applicable. In addition, the charges in the MONTHLY RATES AND CHARGES - Regulatory Component of this schedule fo not apply to a customer that is an embedded wholesale market participant.
A105: GENERAL SERVICE LESS THAN 50 KW
A106: GENERAL SERVICE LESS THAN 50 KW
A107: GENERAL SERVICE LESS THAN 50 KW | B107: It should be noted that this schedule does not list any charges, assessments or credits that are required by law to be invoiced by a distributor and that are not subject to Board approval, such as Debt Retirement Charge, the Global Adjustment, the Ontario Clean Energy Benefit and the HST.
A108: GENERAL SERVICE LESS THAN 50 KW
A109: GENERAL SERVICE LESS THAN 50 KW
A110: GENERAL SERVICE LESS THAN 50 KW
A111: GENERAL SERVICE LESS THAN 50 KW | B111: MONTHLY RATES AND CHARGES - Delivery Component (If applicable, Effective Date MUST be included in rate description)
A112: GENERAL SERVICE LESS THAN 50 KW | B112: Service Charge | H112: $ | I112: 43.19
A113: GENERAL SERVICE LESS THAN 50 KW | B113: Rate Rider for Recovery of Stranded Meter Assets – effective until April 30, 2015 | H113: $ | I113: 5.26
A114: GENERAL SERVICE LESS THAN 50 KW | B114: Rate Rider for Smart Metering Entity Charge - effective until October 31, 2018 | H114: $ | I114: 0.79
A115: GENERAL SERVICE LESS THAN 50 KW | B115: Distribution Volumetric Rate | H115: $/kWh | I115: 0.0088
A116: GENERAL SERVICE LESS THAN 50 KW | B116: Low Voltage Service Rate | H116: $/kWh | I116: 0.003
A117: GENERAL SERVICE LESS THAN 50 KW | B117: Retail Transmission Rate - Network Service Rate | H117: $/kWh | I117: 0.0055
A118: GENERAL SERVICE LESS THAN 50 KW | B118: Retail Transmission Rate - Line and Transformation Connection Service Rate | H118: $/kWh | I118: 0.0039
A119: GENERAL SERVICE LESS THAN 50 KW
A120: GENERAL SERVICE LESS THAN 50 KW
A121: GENERAL SERVICE LESS THAN 50 KW
A122: GENERAL SERVICE LESS THAN 50 KW
A123: GENERAL SERVICE LESS THAN 50 KW
A124: GENERAL SERVICE LESS THAN 50 KW
A125: GENERAL SERVICE LESS THAN 50 KW
A126: GENERAL SERVICE LESS THAN 50 KW
A127: GENERAL SERVICE LESS THAN 50 KW
A128: GENERAL SERVICE LESS THAN 50 KW
A129: GENERAL SERVICE LESS THAN 50 KW
A130: GENERAL SERVICE LESS THAN 50 KW
A131: GENERAL SERVICE LESS THAN 50 KW
A132: GENERAL SERVICE LESS THAN 50 KW
A133: GENERAL SERVICE LESS THAN 50 KW
A134: GENERAL SERVICE LESS THAN 50 KW
A135: GENERAL SERVICE LESS THAN 50 KW
A136: GENERAL SERVICE LESS THAN 50 KW
A137: GENERAL SERVICE LESS THAN 50 KW
A138: GENERAL SERVICE LESS THAN 50 KW
A139: GENERAL SERVICE LESS THAN 50 KW
A140: GENERAL SERVICE LESS THAN 50 KW
A141: GENERAL SERVICE LESS THAN 50 KW
A142: GENERAL SERVICE LESS THAN 50 KW | B142: MONTHLY RATES AND CHARGES - Regulatory Component
A143: GENERAL SERVICE LESS THAN 50 KW
A144: GENERAL SERVICE LESS THAN 50 KW | B144: Wholesale Market Service Rate | H144: =H81 -> $/kWh | I144: 0.0044
A145: GENERAL SERVICE LESS THAN 50 KW | B145: Rural or Remote Electricity Rate Protection Charge (RRRP) | H145: $/kWh | I145: 0.0013
A146: GENERAL SERVICE LESS THAN 50 KW | B146: Standard Supply Service - Administrative Charge (if applicable) | H146: $ | I146: 0.25
A147: GENERAL SERVICE LESS THAN 50 KW
A150: GENERAL SERVICE 50 TO 4,999 KW | B150: GENERAL SERVICE 50 TO 4,999 KW Service Classification
A151: GENERAL SERVICE 50 TO 4,999 KW
A152: GENERAL SERVICE 50 TO 4,999 KW | B152: This classification refers to a non residential account whose monthly average peak demand is equal to or greater than, or is espected to be equal to or greater than 50 kW but less then 5,000 kW. Further servicing details are available in the distributor's Conditions of Service.
A153: GENERAL SERVICE 50 TO 4,999 KW
A154: GENERAL SERVICE 50 TO 4,999 KW
A155: GENERAL SERVICE 50 TO 4,999 KW
A156: GENERAL SERVICE 50 TO 4,999 KW
A157: GENERAL SERVICE 50 TO 4,999 KW
A158: GENERAL SERVICE 50 TO 4,999 KW | B158: APPLICATION
A159: GENERAL SERVICE 50 TO 4,999 KW
A160: GENERAL SERVICE 50 TO 4,999 KW | B160: The application of these rates and charges shall be in accordance with the Licence of the Distributor and any Code or Order of the Board, and amendments thereto as approved by the Board, which may be applicable to the administration of this schedule.
A161: GENERAL SERVICE 50 TO 4,999 KW
A162: GENERAL SERVICE 50 TO 4,999 KW
A163: GENERAL SERVICE 50 TO 4,999 KW | B163: No rates and charges for the distribution of electricity and charges to meet the costs of any work or service done or furnished for the purpose of the distribution of electricityshall be made except as prmitted by this schedule, unless required by the Distributor's Licence or a Code or Order of the Board, and amendments thereto as approved by the Board, or as specified herein.
A164: GENERAL SERVICE 50 TO 4,999 KW
A165: GENERAL SERVICE 50 TO 4,999 KW
A166: GENERAL SERVICE 50 TO 4,999 KW
A167: GENERAL SERVICE 50 TO 4,999 KW | B167: Unless specifically noted, this schedule does not contain any charges for the electricity commodity, be it under the Regulated Price Plan, a contract with a retailer or the wholesale market price, as applicable. In addition, the charges in the MONTHLY RATES AND CHARGES - Regulatory Component of this schedule fo not apply to a customer that is an embedded wholesale market participant.
A168: GENERAL SERVICE 50 TO 4,999 KW
A169: GENERAL SERVICE 50 TO 4,999 KW
A170: GENERAL SERVICE 50 TO 4,999 KW | B170: It should be noted that this schedule does not list any charges, assessments or credits that are required by law to be invoiced by a distributor and that are not subject to Board approval, such as Debt Retirement Charge, the Global Adjustment, the Ontario Clean Energy Benefit and the HST.
A171: GENERAL SERVICE 50 TO 4,999 KW
A172: GENERAL SERVICE 50 TO 4,999 KW
A173: GENERAL SERVICE 50 TO 4,999 KW
A174: GENERAL SERVICE 50 TO 4,999 KW | B174: MONTHLY RATES AND CHARGES - Delivery Component (If applicable, Effective Date MUST be included in rate description)
A175: GENERAL SERVICE 50 TO 4,999 KW | B175: Service Charge | H175: $ | I175: 304.2
A176: GENERAL SERVICE 50 TO 4,999 KW | B176: Distribution Volumetric Rate | H176: $/kW | I176: 2.7354
A177: GENERAL SERVICE 50 TO 4,999 KW | B177: Low Voltage Service Rate | H177: $/kW | I177: 1.387
A178: GENERAL SERVICE 50 TO 4,999 KW | B178: Retail Transmission Rate - Network Service Rate | H178: $/kW | I178: 2.3629
A179: GENERAL SERVICE 50 TO 4,999 KW | B179: Retail Transmission Rate - Line and Transformation Connection Service Rate | H179: $/kW | I179: 1.6344
A180: GENERAL SERVICE 50 TO 4,999 KW
A181: GENERAL SERVICE 50 TO 4,999 KW
A182: GENERAL SERVICE 50 TO 4,999 KW
A183: GENERAL SERVICE 50 TO 4,999 KW
A184: GENERAL SERVICE 50 TO 4,999 KW
A185: GENERAL SERVICE 50 TO 4,999 KW
A186: GENERAL SERVICE 50 TO 4,999 KW
A187: GENERAL SERVICE 50 TO 4,999 KW
A188: GENERAL SERVICE 50 TO 4,999 KW
A189: GENERAL SERVICE 50 TO 4,999 KW
A190: GENERAL SERVICE 50 TO 4,999 KW
A191: GENERAL SERVICE 50 TO 4,999 KW
A192: GENERAL SERVICE 50 TO 4,999 KW
A193: GENERAL SERVICE 50 TO 4,999 KW
A194: GENERAL SERVICE 50 TO 4,999 KW
A195: GENERAL SERVICE 50 TO 4,999 KW
A196: GENERAL SERVICE 50 TO 4,999 KW
A197: GENERAL SERVICE 50 TO 4,999 KW
A198: GENERAL SERVICE 50 TO 4,999 KW
A199: GENERAL SERVICE 50 TO 4,999 KW
A200: GENERAL SERVICE 50 TO 4,999 KW
A201: GENERAL SERVICE 50 TO 4,999 KW
A202: GENERAL SERVICE 50 TO 4,999 KW
A203: GENERAL SERVICE 50 TO 4,999 KW
A204: GENERAL SERVICE 50 TO 4,999 KW
A205: GENERAL SERVICE 50 TO 4,999 KW | B205: MONTHLY RATES AND CHARGES - Regulatory Component
A206: GENERAL SERVICE 50 TO 4,999 KW
A207: GENERAL SERVICE 50 TO 4,999 KW | B207: Wholesale Market Service Rate | H207: =H81 -> $/kWh | I207: 0.0044
A208: GENERAL SERVICE 50 TO 4,999 KW | B208: Rural or Remote Electricity Rate Protection Charge (RRRP) | H208: $/kWh | I208: 0.0013
A209: GENERAL SERVICE 50 TO 4,999 KW | B209: Standard Supply Service - Administrative Charge (if applicable) | H209: $ | I209: 0.25
A210: GENERAL SERVICE 50 TO 4,999 KW
A213: UNMETERED SCATTERED LOAD | B213: UNMETERED SCATTERED LOAD Service Classification
A214: UNMETERED SCATTERED LOAD
A215: UNMETERED SCATTERED LOAD | B215: This classification refers to a non-residiential account taking electricity at 240/120 or 120 volts whose monthly peak demand is less than or expected to be less than 50 kW and is unmetered. A detailed calculation or the load will be calculated for billing purposes. Further servicing detials are available in the distributor's Conditions of Service.
A216: UNMETERED SCATTERED LOAD
A217: UNMETERED SCATTERED LOAD
A218: UNMETERED SCATTERED LOAD
A219: UNMETERED SCATTERED LOAD
A220: UNMETERED SCATTERED LOAD
A221: UNMETERED SCATTERED LOAD | B221: APPLICATION
A222: UNMETERED SCATTERED LOAD
A223: UNMETERED SCATTERED LOAD | B223: The application of these rates and charges shall be in accordance with the Licence of the Distributor and any Code or Order of the Board, and amendments thereto as approved by the Board, which may be applicable to the administration of this schedule.
A224: UNMETERED SCATTERED LOAD
A225: UNMETERED SCATTERED LOAD
... 225 more rows

Sheet 6. hidden (hidden)
E1: Billed kWh for Non-RPP Customers | F1: Estimated kW for Non-RPP Customers | G1: Distribution Revenue 1 | H1: 1590 Recovery Share Proportion* | I1: 1595 Recovery Share Proportion (2008) 2 | J1: 1595 Recovery Share Proportion (2009) 2 | K1: 1595 Recovery Share Proportion (2010) 2 | L1: 1595 Recovery Share Proportion (2011) 2 | M1: 1568 LRAM Variance Account Class Allocation
A2: Rate Class | B2: Unit | C2: Metered kWh | D2: Metered kW
A3: RESIDENTIAL | B3: $/kWh | C3: 0 | D3: 0 | E3: 0 | G3: 0 | H3: 0 | I3: 0 | J3: 0 | K3: 0 | L3: 0 | M3: 0 | N3: 0 | O3: 0
A4: STREET LIGHTING | B4: $/kW | C4: 0 | D4: 0 | E4: 0 | G4: 0 | H4: 0 | I4: 0 | J4: 0 | K4: 0 | L4: 0 | M4: 0 | N4: 0 | O4: 0
A5: STANDBY POWER | B5: 0 | C5: 0 | D5: 0 | E5: 0 | G5: 0 | H5: 0 | I5: 0 | J5: 0 | K5: 0 | L5: 0 | M5: 0 | N5: 0 | O5: 0

Sheet 4. Growth Factor - NUM_CALC1
A13: ="Input the billing determinants and base distribution rates associated with " & '1. Information Sheet'!F14 & "'s " & '1. Information Sheet'!F48 & ". Sheets 4 & 5 calculate the NUMERATOR portion of the growth factor calculation." -> Input the billing determinants and base distribution rates associated with Alectra Utilities Corporation - PowerStream Rate Zone's 2017 Board-Approved Distribution Revenues. Sheets 4 & 5 calculate the NUMERATOR portion of the growth factor calculation.
C15: ='1. Information Sheet'!F48 -> 2017 Board-Approved Distribution Revenues | G15: =C15 -> 2017 Board-Approved Distribution Revenues
A16: Rate Class | B16: Units | C16: Billed Customers or Connections | D16: Billed kWh | E16: Billed kW (if applicable) | G16: Monthly Service Charge | H16: Distribution Volumetric Rate kWh | I16: Distribution Volumetric Rate kW
A17: RESIDENTIAL | B17: $/kWh | C17: 331461 | D17: 2689802037 | E17: 0 | G17: 18.51 | H17: 0.013 | I17: 0
A18: GENERAL SERVICE LESS THAN 50 KW | B18: $/kWh | C18: 32775 | D18: 1031991524 | E18: 0 | G18: 28.74 | H18: 0.0183 | I18: 0
A19: GENERAL SERVICE 50 TO 4,999 KW SERVICE CLASSIFICATION | B19: $/kW | C19: 5081 | D19: 4566530904 | E19: 12192631.56 | G19: 140.97 | H19: 0 | I19: 4.2037
A20: LARGE USE SERVICE CLASSIFICATION | B20: $/kW | C20: 2 | D20: 75964677.2 | E20: 149678.9801 | G20: 6073.68 | H20: 0 | I20: 2.2421
A21: UNMETERED SCATTERED LOAD SERVICE CLASSIFICATION | B21: $/kWh | C21: 3044 | D21: 14542413.3 | G21: 8.6 | H21: 0.0195 | I21: 0
A22: SENTINEL LIGHTING | B22: $/kWh | C22: 207 | D22: 377900.014 | E22: 974.7851233 | G22: 4.19 | H22: 0 | I22: 9.8694
A23: STREET LIGHTING | B23: $/kW | C23: 89729 | D23: 45603290.64 | E23: 127502.8492 | G23: 1.19 | H23: 0 | I23: 6.3222

Sheet 5. Growth Factor - NUM_CALC2
A12: =IF('1. Information Sheet'!F26="COS", "Calculation of " & '1. Information Sheet'!K26 & " Revenue Requirement. No input required.", "Calculation of " & '1. Information Sheet'!F38 & " Revenue Requirement. No input required.") -> Calculation of 2017 Revenue Requirement. No input required.
C14: ='4. Growth Factor - NUM_CALC1'!C15 -> 2017 Board-Approved Distribution Revenues
A15: Rate Class | C15: Billed Customers or Connections | D15: Billed kWh | E15: Billed kW (if applicable) | G15: Monthly Service Charge | H15: Distribution Volumetric Rate kWh | I15: Distribution Volumetric Rate kW | K15: Service Charge Revenue | L15: Distribution Volumetric Rate Revenue kWh | M15: Distribution Volumetric Rate Revenue kW | N15: Revenue Requirement from Rates | P15: Service Charge % Revenue | Q15: Distribution Volumetric Rate % Revenue kWh | R15: Distribution Volumetric Rate % Revenue kW | S15: Total % Revenue
C16: A | D16: B | E16: C | G16: D | H16: E | I16: F | K16: G = A * D *12 | L16: H = B * E | M16: I = C * F | N16: J = G + H + I | P16: K = G / J | Q16: L = H / J | R16: M = I / J | S16: N = J / R
A17: RESIDENTIAL | C17: 331461 | D17: 2689802037 | E17: 0 | G17: 18.51 | H17: 0.013 | I17: 0 | K17: =G17*C17*12 -> 73624117.32 | L17: =H17*D17 -> 34967426.48 | M17: 0 | N17: =SUM(K17,L17,M17) -> 108591543.8 | P17: =IF(ISERROR(K17/N17),0,ROUND(K17/N17,3)) -> 0.678 | Q17: =IF(ISERROR(L17/N17),0,ROUND(L17/N17,3)) -> 0.322 | R17: =IF(ISERROR(M17/N17),0,ROUND(M17/N17,3)) -> 0 | S17: =N17/N24 -> 0.5380710722
A18: GENERAL SERVICE LESS THAN 50 KW | C18: 32775 | D18: 1031991524 | E18: 0 | G18: 28.74 | H18: 0.0183 | I18: 0 | K18: 11303442 | L18: =H18*D18 -> 18885444.89 | M18: 0 | N18: 30188886.89 | P18: 0.374 | Q18: 0.626 | R18: 0 | S18: =N18/N24 -> 0.1495859269
A19: GENERAL SERVICE 50 TO 4,999 KW SERVICE CLASSIFICATION | C19: 5081 | D19: 4566530904 | E19: 12192631.56 | G19: 140.97 | H19: 0 | I19: 4.2037 | K19: 8595222.84 | L19: 0 | M19: =I19*E19 -> 51254165.3 | N19: 59849388.14 | P19: 0.144 | Q19: 0 | R19: 0.856 | S19: =N19/N24 -> 0.2965537031
A20: LARGE USE SERVICE CLASSIFICATION | C20: 2 | D20: 75964677.2 | E20: 149678.9801 | G20: 6073.68 | H20: 0 | I20: 2.2421 | K20: 145768.32 | L20: 0 | M20: =I20*E20 -> 335595.2413 | N20: 481363.5613 | P20: 0.303 | Q20: 0 | R20: 0.697 | S20: =N20/N24 -> 0.002385156325
A21: UNMETERED SCATTERED LOAD SERVICE CLASSIFICATION | C21: 3044 | D21: 14542413.3 | G21: 8.6 | H21: 0.0195 | I21: 0 | K21: 314140.8 | L21: =H21*D21 -> 283577.0594 | M21: 0 | N21: 597717.8594 | P21: 0.526 | Q21: 0.474 | R21: 0 | S21: =N21/N24 -> 0.002961691843
A22: SENTINEL LIGHTING | C22: 207 | D22: 377900.014 | E22: 974.7851233 | G22: 4.19 | H22: 0 | I22: 9.8694 | K22: 10407.96 | L22: 0 | M22: =I22*E22 -> 9620.544296 | N22: 20028.5043 | P22: 0.52 | Q22: 0 | R22: 0.48 | S22: =N22/N24 -> 9.924123374e-05
A23: STREET LIGHTING | C23: 89729 | D23: 45603290.64 | E23: 127502.8492 | G23: 1.19 | H23: 0 | I23: 6.3222 | K23: 1281330.12 | L23: 0 | M23: =I23*E23 -> 806098.5135 | N23: 2087428.634 | P23: 0.614 | Q23: 0 | R23: 0.386 | S23: =N23/N24 -> 0.01034320835
A24: Total | C24: =SUM(C17:C23) -> 462299 | D24: =SUM(D17:D23) -> 8424812745 | E24: =SUM(E17:E23) -> 12470788.18 | K24: =SUM(K17:K23) -> 95274429.36 | L24: =SUM(L17:L23) -> 54136448.42 | M24: =SUM(M17:M23) -> 52405479.59 | N24: =SUM(N17:N23) -> 201816357.4 | S24: =SUM(S17:S23) -> 1

Sheet 9. STS - Billing Det & Rate HID (hidden)
A11: Shared Tax Savings
A12: ="Enter your " & '1. Information Sheet'!F36 & " Board-Approved Billing Determinents into columns B, C and D." -> Enter your Board-Approved Billing Determinents into columns B, C and D.
A16: Rate Class | B16: Units | C16: Re-based Billed Customers or Connections | D16: Re-based Billed kWh | E16: Re-based Billed kW (if applicable) | G16: ='1. Information Sheet'!F36 &" Base Monthly Service Charge" -> Base Monthly Service Charge | H16: ='1. Information Sheet'!F36 &" Base Distribution Volumetric Rate kWh" -> Base Distribution Volumetric Rate kWh | I16: ='1. Information Sheet'!F36 &" Base Distribution Volumetric Rate kW" -> Base Distribution Volumetric Rate kW
A17: RESIDENTIAL | B17: $/kWh | C17: 331461 | D17: 2689802037 | E17: 0 | G17: 18.51 | H17: 0.013 | I17: 0
A18: GENERAL SERVICE LESS THAN 50 KW | B18: $/kWh | C18: 32775 | D18: 1031991524 | E18: 0 | G18: 28.74 | H18: 0.0183 | I18: 0
A19: GENERAL SERVICE 50 TO 4,999 KW SERVICE CLASSIFICATION | B19: $/kW | C19: 5081 | D19: 4566530904 | E19: 12192631.56 | G19: 140.97 | H19: 0 | I19: 4.2037
A20: LARGE USE SERVICE CLASSIFICATION | B20: $/kW | C20: 2 | D20: 75964677.2 | E20: 149678.9801 | G20: 6073.68 | H20: 0 | I20: 2.2421
A21: UNMETERED SCATTERED LOAD SERVICE CLASSIFICATION
A22: SENTINEL LIGHTING | B22: $/kWh | C22: 207 | D22: 377900.014 | E22: 974.7851233 | G22: 4.19 | H22: 0 | I22: 9.8694
A23: STREET LIGHTING | B23: $/kW | C23: 89729 | D23: 45603290.64 | E23: 127502.8492 | G23: 1.19 | H23: 0 | I23: 6.3222

Sheet 6. Rev_Requ_Check
A8: Applicants Rate Base | C8: ='4. Growth Factor - NUM_CALC1'!C15 -> 2017 Board-Approved Distribution Revenues
A9: Average Net Fixed Assets
A10: Gross Fixed Assets - Re-based Opening | C10: 1183508943 | D10: A
A11: Add: CWIP Re-based Opening | C11: 57486861.79 | D11: B
A12: Re-based Capital Additions | C12: 114494288.9 | D12: C
A13: Re-based Capital Disposals | C13: -2734108.145 | D13: D
A14: Re-based Capital Retirements | D14: E
A15: Deduct: CWIP Re-based Closing | C15: -39959632.13 | D15: F
A16: Gross Fixed Assets - Re-based Closing | C16: =SUM(C10:C15) -> 1312796354 | D16: G
A17: Average Gross Fixed Assets | E17: =(C10+C16)/2 -> 1248152649 | F17: H = ( A + G ) / 2
A19: Accumulated Depreciation - Re-based Opening | C19: 229378962 | D19: I
A20: Re-based Depreciation Expense | C20: 52272172.96 | D20: J
A21: Re-based Disposals | C21: -717703 | D21: K
A22: Re-based Retirements | C22: 0 | D22: L
A23: Accumulated Depreciation - Re-based Closing | C23: =SUM(C19:C22) -> 280933431.9 | D23: M
A24: Average Accumulated Depreciation | E24: =SUM(C19,C23)/2 -> 255156197 | F24: N = ( I + M ) / 2
A26: Average Net Fixed Assets | E26: =E17-E24 -> 992996451.7 | F26: O = H - N
A28: Working Capital Allowance
A29: Working Capital Allowance Base | C29: 1197449515 | D29: P
A30: Working Capital Allowance Rate | C30: 0.075 | D30: Q
A31: Working Capital Allowance | E31: =C29*C30 -> 89808713.6 | F31: R = P * Q
A33: Rate Base | E33: =SUM(E26,E31) -> 1082805165 | F33: S = O + R
A35: Return on Rate Base
A36: Deemed ShortTerm Debt % | C36: 0.04 | D36: T | E36: =E33*C36 -> 43312206.61 | F36: W = S * T
A37: Deemed Long Term Debt % | C37: 0.56 | D37: U | E37: =E33*C37 -> 606370892.6 | F37: X = S * U
A38: Deemed Equity % | C38: =1-C36-C37 -> 0.4 | D38: V | E38: =E33*C38 -> 433122066.1 | F38: Y = S * V
A40: Short Term Interest | C40: 0.0176 | D40: Z | E40: =E36*C40 -> 762294.8364 | F40: AC = W * Z
A41: Long Term Interest | C41: 0.03882504 | D41: AA | E41: =E37*C41 -> 23542374.16 | F41: AD = X * AA
A42: Return on Equity | C42: 0.0878 | D42: AB | E42: =E38*C42 -> 38028117.4 | F42: AE = Y * AB
A43: Return on Rate Base | E43: =SUM(E40:E42) -> 62332786.4 | F43: AF = AC + AD + AE
A45: Distribution Expenses
A46: OM&A Expenses | C46: 96167243 | D46: AG
A47: Amortization | C47: 50974104.04 | D47: AH
A48: Ontario Capital Tax | D48: AI
A49: Grossed Up PILs | C49: 2745639.471 | D49: AJ
A50: Low Voltage | D50: AK
A51: Transformer Allowance | C51: 2236781.822 | D51: AL
D52: AM
D53: AN
D54: AO
E55: =SUM(C46:C54) -> 152123768.3 | F55: AP = SUM ( AG : AO )
A56: Revenue Offsets
A57: Specific Service Charges | C57: -3474783.959 | D57: AQ
A58: Late Payment Charges | C58: -2076532.299 | D58: AR
A59: Other Distribution Income | C59: -2025296.073 | D59: AS
A60: Other Income and Deductions | C60: -5141699.492 | D60: AT | E60: =SUM(C57:C60) -> -12718311.82 | F60: AU = SUM ( AQ : AT )
A62: Revenue Requirement from Distribution Rates | E62: =SUM(E60,E55,E43) -> 201738242.9 | F62: AV = AF + AP + AU
A64: Rate Classes Revenue
A65: Rate Classes Revenue - Total (Sheet 5) | E65: 201816357.4 | F65: AW
A67: Difference | E67: =E62-E65 -> -78114.46609 | F67: AZ = AV - AW
A69: Difference (Percentage - should be less than 1%) | E69: =IF(ISERROR(E67/E65),0,E67/E65) -> -0.0003870571598 | F69: BA = AZ / AW

Sheet 7. Growth Factor - DEN_CALC
A12: ="Input the billing determinants associated with "&'1. Information Sheet'!F14&"'s "&'1. Information Sheet'!F49&". This sheet calculates the DENOMINATOR portion of the growth factor calculation." -> Input the billing determinants associated with Alectra Utilities Corporation - PowerStream Rate Zone's 2016 Actual Distribution Revenues. This sheet calculates the DENOMINATOR portion of the growth factor calculation.
A13: Pseudo Revenue Requirement Calculation.
C14: ='1. Information Sheet'!F49 -> 2016 Actual Distribution Revenues | G14: ='1. Information Sheet'!F38 & " Base Rates" -> 2017 Base Rates
A15: Rate Class | C15: Billed Customers or Connections | D15: Billed kWh | E15: Billed kW | G15: Monthly Service Charge | H15: Distribution Volumetric Rate kWh | I15: Distribution Volumetric Rate kW | K15: Service Charge Revenue | L15: Distribution Volumetric Rate Revenue kWh | M15: Distribution Volumetric Rate Revenue kW | N15: Total Revenue By Rate Class | P15: Service Charge % Revenue | Q15: Distribution Volumetric Rate % Revenue kWh | R15: Distribution Volumetric Rate % Revenue kW | S15: Total % Revenue
C16: A | D16: B | E16: C | G16: D | H16: E | I16: F | K16: G = A * D *12 | L16: H = B * E | M16: I = C * F | N16: J = G + H + I | P16: K = G / Jtotal | Q16: L = H / Jtotal | R16: M = I / Jtotal | S16: N = J / Jtotal
A17: RESIDENTIAL | C17: 325741 | D17: 2777974550 | E17: 0 | G17: 18.51 | H17: 0.013 | I17: 0 | K17: =G17*C17*12 -> 72353590.92 | L17: =H17*D17 -> 36113669.15 | M17: 0 | N17: =SUM(K17,L17,M17) -> 108467260.1 | P17: =IF(ISERROR(K17/N24),0,ROUND(K17/N24,3)) -> 0.361 | Q17: =IF(ISERROR(L17/N24),0,ROUND(L17/N24,3)) -> 0.18 | R17: =IF(ISERROR(M17/N24),0,ROUND(M17/N24,3)) -> 0 | S17: =N17/N24 -> 0.5418801454
A18: GENERAL SERVICE LESS THAN 50 KW | C18: 32395 | D18: 1041512339 | E18: 0 | G18: 28.74 | H18: 0.0183 | I18: 0 | K18: 11172387.6 | L18: 19059675.8 | M18: 0 | N18: 30232063.4 | P18: =IF(ISERROR(K18/N24),0,ROUND(K18/N24,3)) -> 0.056 | Q18: =IF(ISERROR(L18/N24),0,ROUND(L18/N24,3)) -> 0.095 | R18: =IF(ISERROR(M18/N24),0,ROUND(M18/N24,3)) -> 0 | S18: =N18/N24 -> 0.1510331772
A19: GENERAL SERVICE 50 TO 4,999 KW SERVICE CLASSIFICATION | C19: 4969 | D19: 4592208771 | E19: 11856847 | G19: 140.97 | H19: 0 | I19: 4.2037 | K19: 8405759.16 | L19: 0 | M19: 49842627.73 | N19: 58248386.89 | P19: =IF(ISERROR(K19/N24),0,ROUND(K19/N24,3)) -> 0.042 | Q19: =IF(ISERROR(L19/N24),0,ROUND(L19/N24,3)) -> 0 | R19: =IF(ISERROR(M19/N24),0,ROUND(M19/N24,3)) -> 0.249 | S19: =N19/N24 -> 0.2909969731
A20: LARGE USE SERVICE CLASSIFICATION | C20: 2 | D20: 67387072 | E20: 130430 | G20: 6073.68 | H20: 0 | I20: 2.2421 | K20: 145768.32 | L20: 0 | M20: 292437.103 | N20: 438205.423 | P20: =IF(ISERROR(K20/N24),0,ROUND(K20/N24,3)) -> 0.001 | Q20: =IF(ISERROR(L20/N24),0,ROUND(L20/N24,3)) -> 0 | R20: =IF(ISERROR(M20/N24),0,ROUND(M20/N24,3)) -> 0.001 | S20: =N20/N24 -> 0.002189184259
A21: UNMETERED SCATTERED LOAD SERVICE CLASSIFICATION | C21: 2945 | D21: 13692255 | E21: 0 | G21: 8.6 | H21: 0.0195 | I21: 0 | K21: 303924 | L21: 266998.9725 | M21: 0 | N21: 570922.9725 | P21: =IF(ISERROR(K21/N24),0,ROUND(K21/N24,3)) -> 0.002 | Q21: =IF(ISERROR(L21/N24),0,ROUND(L21/N24,3)) -> 0.001 | R21: =IF(ISERROR(M21/N24),0,ROUND(M21/N24,3)) -> 0 | S21: =N21/N24 -> 0.002852213868
A22: SENTINEL LIGHTING | C22: 195 | D22: 314360 | E22: 859 | G22: 4.19 | H22: 0 | I22: 9.8694 | K22: 9804.6 | L22: 0 | M22: 8477.8146 | N22: 18282.4146 | P22: =IF(ISERROR(K22/N24),0,ROUND(K22/N24,3)) -> 0 | Q22: =IF(ISERROR(L22/N24),0,ROUND(L22/N24,3)) -> 0 | R22: =IF(ISERROR(M22/N24),0,ROUND(M22/N24,3)) -> 0 | S22: =N22/N24 -> 9.133518701e-05
A23: STREET LIGHTING | C23: 88914 | D23: 52642446 | E23: 146080 | G23: 1.19 | H23: 0 | I23: 6.3222 | K23: 1269691.92 | L23: 0 | M23: 923546.976 | N23: 2193238.896 | P23: =IF(ISERROR(K23/N24),0,ROUND(K23/N24,3)) -> 0.006 | Q23: =IF(ISERROR(L23/N24),0,ROUND(L23/N24,3)) -> 0 | R23: =IF(ISERROR(M23/N24),0,ROUND(M23/N24,3)) -> 0.005 | S23: =N23/N24 -> 0.0109569709
A24: Total | C24: =SUM(C17:C23) -> 455161 | D24: =SUM(D17:D23) -> 8545731793 | E24: =SUM(E17:E23) -> 12134216 | K24: =SUM(K17:K23) -> 93660926.52 | L24: =SUM(L17:L23) -> 55440343.93 | M24: =SUM(M17:M23) -> 51067089.63 | N24: =SUM(N17:N23) -> 200168360.1 | S24: =SUM(S17:S23) -> 1

Sheet 7. Load Actual - HID (hidden)
A12: ="Calculation of Most Recent Revenue. Enter values into green shaded cells (" & '1. Information Sheet'!#REF! & ")" -> 
A15: Rate Class | C15: Billed Customers or Connections | D15: Billed kWh | E15: Billed kW | G15: Base Service Charge | H15: Base Distribution Volumetric Rate kWh | I15: Base Distribution Volumetric Rate kW | K15: Service Charge Revenue | L15: Distribution Volumetric Rate Revenue kWh | M15: Distribution Volumetric Rate Revenue kW | N15: Total Revenue By Rate Class | P15: Service Charge % Revenue | Q15: Distribution Volumetric Rate % Revenue kWh | R15: Distribution Volumetric Rate % Revenue kW | S15: Total % Revenue
C16: A | D16: B | E16: C | G16: D | H16: E | I16: F | K16: G = A * D *12 | L16: H = B * E | M16: I = C * F | N16: J = G + H + I | P16: K = G / J | Q16: L = H / J | R16: M = I / J | S16: N = J / R
A17: RESIDENTIAL | C17: 325741 | D17: 2777974550 | E17: 0
A18: GENERAL SERVICE LESS THAN 50 KW | C18: 32395 | D18: 1041512339 | E18: 0
A19: GENERAL SERVICE 50 TO 4,999 KW SERVICE CLASSIFICATION | C19: 4969 | D19: 4592208771 | E19: 11856847
A20: LARGE USE SERVICE CLASSIFICATION | C20: 2 | D20: 67387072 | E20: 130430
A21: UNMETERED SCATTERED LOAD SERVICE CLASSIFICATION | C21: 0 | D21: 0 | E21: 0
A22: SENTINEL LIGHTING | C22: 195 | D22: 314360 | E22: 859
A23: STREET LIGHTING | C23: 88914 | D23: 52642446 | E23: 146080

Sheet 8. Revenue Proportions
A12: Current Revenue from Rates
A13: This sheet is used to determine the applicant's most current allocation of revenues (after the most recent revenue to cost ratio adjustment, if applicable) to appropriately allocate the incremental revenue requirement to the classes.
C14: =IF('1. Information Sheet'!F26="COS", "Proposed Base Rates in Current CoS Application", "Most Recent Board-Approved Base Rates") -> Most Recent Board-Approved Base Rates | G14: ='4. Growth Factor - NUM_CALC1'!C15 -> 2017 Board-Approved Distribution Revenues
A15: Rate Class | C15: Monthly Service Charge | D15: Distribution Volumetric Rate kWh | E15: Distribution Volumetric Rate kW | G15: Re-based Billed Customers or Connections | H15: Re-based Billed kWh | I15: Re-based Billed kW | K15: Current Base Service Charge Revenue | L15: Current Base Distribution Volumetric Rate kWh Revenue | M15: Current Base Distribution Volumetric Rate kW Revenue | N15: Total Current Base Revenue | P15: Service Charge % Total Revenue | Q15: Distribution Volumetric Rate % Total Revenue | R15: Distribution Volumetric Rate % Total Revenue | S15: Total % Revenue
C16: A | D16: B | E16: C | G16: D | H16: E | I16: F | K16: G = A * D *12 | L16: H = B * E | M16: I = C * F | N16: J = G + H + I | P16: L = G / Jtotal | Q16: M = H / Jtotal | R16: N = I / Jtotal | S16: O = J / Jtotal
A17: RESIDENTIAL | C17: 21.63 | D17: 0.0088 | E17: 0 | G17: 331461 | H17: 2689802037 | I17: 0 | K17: =G17*C17*12 -> 86034017.16 | L17: =H17*D17 -> 23670257.92 | M17: 0 | N17: =SUM(K17,L17,M17) -> 109704275.1 | P17: =IF(ISERROR(K17/N24),0,K17/N24) -> 0.4222153129 | Q17: =IF(ISERROR(L17/N24),0,L17/N24) -> 0.1161627189 | R17: =IF(ISERROR(M17/N24),0,M17/N24) -> 0 | S17: =N17/N24 -> 0.5383780318
A18: GENERAL SERVICE LESS THAN 50 KW | C18: 28.99866 | D18: 0.0184647 | E18: 0 | G18: 32775 | H18: 1031991524 | I18: 0 | K18: 11405172.98 | L18: 19055413.89 | M18: 0 | N18: 30460586.87 | P18: =IF(ISERROR(K18/N24),0,K18/N24) -> 0.05597133362 | Q18: =IF(ISERROR(L18/N24),0,L18/N24) -> 0.09351519089 | R18: =IF(ISERROR(M18/N24),0,M18/N24) -> 0 | S18: =N18/N24 -> 0.1494865245
A19: GENERAL SERVICE 50 TO 4,999 KW SERVICE CLASSIFICATION | C19: 142.23873 | D19: 0 | E19: 4.2415333 | G19: 5081 | H19: 4566530904 | I19: 12192631.56 | K19: 8672579.846 | L19: 0 | M19: 51715452.78 | N19: 60388032.63 | P19: =IF(ISERROR(K19/N24),0,K19/N24) -> 0.04256102567 | Q19: =IF(ISERROR(L19/N24),0,L19/N24) -> 0 | R19: =IF(ISERROR(M19/N24),0,M19/N24) -> 0.2537956125 | S19: =N19/N24 -> 0.2963566381
A20: LARGE USE SERVICE CLASSIFICATION | C20: 6128.34312 | D20: 0 | E20: 2.2622789 | G20: 2 | H20: 75964677.2 | I20: 149678.9801 | K20: 147080.2349 | L20: 0 | M20: 338615.5984 | N20: 485695.8333 | P20: =IF(ISERROR(K20/N24),0,K20/N24) -> 0.0007218020202 | Q20: =IF(ISERROR(L20/N24),0,L20/N24) -> 0 | R20: =IF(ISERROR(M20/N24),0,M20/N24) -> 0.001661769328 | S20: =N20/N24 -> 0.002383571348
A21: UNMETERED SCATTERED LOAD SERVICE CLASSIFICATION | C21: 8.6774 | D21: 0.0196755 | E21: 0 | G21: 3044 | H21: 14542413.3 | K21: 316968.0672 | L21: 286129.2529 | M21: 0 | N21: 603097.3201 | P21: =IF(ISERROR(K21/N24),0,K21/N24) -> 0.001555533219 | Q21: =IF(ISERROR(L21/N24),0,L21/N24) -> 0.001404190529 | R21: =IF(ISERROR(M21/N24),0,M21/N24) -> 0 | S21: =N21/N24 -> 0.002959723748
A22: SENTINEL LIGHTING | C22: 4.22771 | D22: 0 | E22: 9.9582246 | G22: 207 | H22: 377900.014 | I22: 974.7851233 | K22: 10501.63164 | L22: 0 | M22: 9707.129194 | N22: 20208.76083 | P22: =IF(ISERROR(K22/N24),0,K22/N24) -> 5.153716908e-05 | Q22: =IF(ISERROR(L22/N24),0,L22/N24) -> 0 | R22: =IF(ISERROR(M22/N24),0,M22/N24) -> 4.763811717e-05 | S22: =N22/N24 -> 9.917528625e-05
A23: STREET LIGHTING | C23: 1.20071 | D23: 0 | E23: 6.3790998 | G23: 89729 | H23: 45603290.64 | I23: 127502.8492 | K23: 1292862.091 | L23: 0 | M23: 813353.4001 | N23: 2106215.491 | P23: =IF(ISERROR(K23/N24),0,K23/N24) -> 0.006344771409 | Q23: =IF(ISERROR(L23/N24),0,L23/N24) -> 0 | R23: =IF(ISERROR(M23/N24),0,M23/N24) -> 0.003991563706 | S23: =N23/N24 -> 0.01033633512
A24: Total | K24: =SUM(K17:K23) -> 107879182 | L24: =SUM(L17:L23) -> 43011801.07 | M24: =SUM(M17:M23) -> 52877128.91 | N24: =SUM(N17:N23) -> 203768112 | S24: =SUM(S17:S23) -> 1

Sheet 8. Current Revenue - HID (hidden)
A12: ="Calculation of Most Recent Revenue. Enter values into green shaded cells (" & '1. Information Sheet'!#REF! & ")" -> 
A15: Rate Class | C15: Current Base Service Charge | D15: Current Base Distribution Volumetric Rate kWh | E15: Current Base Distribution Volumetric Rate kW | G15: Re-based Billed Customers or Connections | H15: Re-based Billed kWh | I15: Re-based Billed kW | K15: Current Base Service Charge Revenue | L15: Current Base Distribution Volumetric Rate kWh Revenue | M15: Current Base Distribution Volumetric Rate kW Revenue | N15: Total Current Base Revenue | P15: Service Charge % Total Revenue | Q15: Distribution Volumetric Rate % Total Revenue | R15: Distribution Volumetric Rate % Total Revenue | S15: Total % Revenue
C16: A | D16: B | E16: C | G16: D | H16: E | I16: F | K16: G = A * D *12 | L16: H = B * E | M16: I = C * F | N16: J = G + H + I | P16: K = G / J | Q16: L = H / J | R16: M = I / J | S16: N = J / R
A17: RESIDENTIAL | C17: 21.63 | D17: 0.0088 | E17: 0
A18: GENERAL SERVICE LESS THAN 50 KW | C18: 28.99866 | D18: 0.0184647 | E18: 0
A19: GENERAL SERVICE 50 TO 4,999 KW SERVICE CLASSIFICATION | C19: 142.23873 | D19: 0 | E19: 4.2415333
A20: LARGE USE SERVICE CLASSIFICATION | C20: 6128.34312 | D20: 0 | E20: 2.2622789
A21: UNMETERED SCATTERED LOAD SERVICE CLASSIFICATION
A22: SENTINEL LIGHTING | C22: 4.22771 | D22: 0 | E22: 9.9582246
A23: STREET LIGHTING | C23: 1.20071 | D23: 0 | E23: 6.3790998

Sheet 9. Threshold Test
A8: No Input Required.
C9: =IF('1. Information Sheet'!F26 = "COS", "Preliminary Threshold Calculation", "Final Threshold Calculation") -> Final Threshold Calculation
C13: Year | E13: 2019
C14: Year in which Applicant is applying | E14: =IF('1. Information Sheet'!F26="CoS", "COS",'1. Information Sheet'!F28) -> 2
C16: Price Cap Index | E16: ='1. Information Sheet'!F40-0.3% -> 0.009
C17: Growth Factor Calculation
C18: ='1. Information Sheet'!F48 -> 2017 Board-Approved Distribution Revenues | E18: 201816357.4
C19: ='1. Information Sheet'!F49 -> 2016 Actual Distribution Revenues | E19: 200168360.1
C20: Growth Factor | E20: =IF(ISERROR(E18/E19-1),0,(E18/E19-1)/('1. Information Sheet'!I48-'1. Information Sheet'!I49)) -> 0.008233055925
C21: Dead Band | E21: 0.1
C22: Average Net Fixed Assets
C23: Gross Fixed Assets Opening | E23: ='6. Rev_Requ_Check'!C10 -> 1183508943
C24: Add: CWIP Opening | E24: ='6. Rev_Requ_Check'!C11 -> 57486861.79
C25: Capital Additions | E25: ='6. Rev_Requ_Check'!C12 -> 114494288.9
C26: Capital Disposals | E26: ='6. Rev_Requ_Check'!C13 -> -2734108.145
C27: Capital Retirements | E27: ='6. Rev_Requ_Check'!C14 -> 0
C28: Deduct: CWIP Closing | E28: ='6. Rev_Requ_Check'!C15 -> -39959632.13
C29: Gross Fixed Assets - Closing | E29: ='6. Rev_Requ_Check'!C16 -> 1312796354
C31: Average Gross Fixed Assets | E31: =(E23+E29)/2 -> 1248152649
C33: Accumulated Depreciation - Opening | E33: ='6. Rev_Requ_Check'!C19 -> 229378962
C34: Depreciation Expense | E34: ='6. Rev_Requ_Check'!C20 -> 52272172.96
C35: Disposals | E35: ='6. Rev_Requ_Check'!C21 -> -717703
C36: Retirements | E36: ='6. Rev_Requ_Check'!C22 -> 0
C37: Accumulated Depreciation - Closing | E37: ='6. Rev_Requ_Check'!C23 -> 280933431.9
C39: Average Accumulated Depreciation | E39: =(E33+E37)/2 -> 255156197
C41: Average Net Fixed Assets | E41: =E31-E39 -> 992996451.7
C44: Working Capital Allowance
C45: Working Capital Allowance Base | E45: ='6. Rev_Requ_Check'!C29 -> 1197449515
C46: Working Capital Allowance Rate | E46: ='6. Rev_Requ_Check'!C30 -> 0.075
C47: Working Capital Allowance | E47: =E45*E46 -> 89808713.6
C49: Rate Base | E49: =E41+E47 -> 1082805165
C51: Depreciation | E51: =E34 -> 52272172.96
C53: Threshold Value (varies by Price Cap IR Year subsequent to CoS rebasing)
C54: =CONCATENATE(" Price Cap IR Year ",IF('1. Information Sheet'!F$26="Price-Cap IR",'1. Information Sheet'!F$34+1,'1. Information Sheet'!K$26+1)) -> Price Cap IR Year 2018 | E54: =IF(ISERROR(1+((RB/d)*(g+PCI*(1+g)))*((1+g)*(1+PCI))^(1-1) + 10%), 0, 1+((RB/d)*(g+PCI*(1+g)))*((1+g)*(1+PCI))^(1-1) + 10%) -> 1.458513413
C55: =CONCATENATE(" Price Cap IR Year ",IF('1. Information Sheet'!F$26="Price-Cap IR",'1. Information Sheet'!F$34+2,'1. Information Sheet'!K$26+2)) -> Price Cap IR Year 2019 | E55: =IF(ISERROR(1+((RB/d)*(g+PCI*(1+g)))*((1+g)*(1+PCI))^(2-1) + 10%), 0, 1+((RB/d)*(g+PCI*(1+g)))*((1+g)*(1+PCI))^(2-1) + 10%) -> 1.46471826
C56: =CONCATENATE(" Price Cap IR Year ",IF('1. Information Sheet'!F$26="Price-Cap IR",'1. Information Sheet'!F$34+3,'1. Information Sheet'!K$26+3)) -> Price Cap IR Year 2020 | E56: =IF(ISERROR(1+((RB/d)*(g+PCI*(1+g)))*((1+g)*(1+PCI))^(3-1) + 10%), 0, 1+((RB/d)*(g+PCI*(1+g)))*((1+g)*(1+PCI))^(3-1) + 10%) -> 1.471030494
C57: =CONCATENATE(" Price Cap IR Year ",IF('1. Information Sheet'!F$26="Price-Cap IR",'1. Information Sheet'!F$34+4,'1. Information Sheet'!K$26+4)) -> Price Cap IR Year 2021 | E57: =IF(ISERROR(1+((RB/d)*(g+PCI*(1+g)))*((1+g)*(1+PCI))^(4-1) + 10%), 0, 1+((RB/d)*(g+PCI*(1+g)))*((1+g)*(1+PCI))^(4-1) + 10%) -> 1.477451976
C59: Threshold CAPEX
C60: =C54 -> Price Cap IR Year 2018 | E60: =IF(ISERROR(d*E54), "", d*E54) -> 76239665.39
C61: =C55 -> Price Cap IR Year 2019 | E61: =IF(ISERROR(d*E55), "", d*E55) -> 76564006.2
C62: Price Cap IR Year 2020 | E62: =IF(ISERROR(d*E56), "", d*E56) -> 76893960.44
C63: Price Cap IR Year 2021 | E63: =IF(ISERROR(d*E57), "", d*E57) -> 77229625.24
B66: Note 1: | C66: The growth factor g is annualized, depending on the number of years between the numerator and denominator for the calculation. Typically, for ACM review in a cost of service and in the fourth year of Price Cap IR, the ratio is divided by 2 to annualize it. No division is normally required for the first three years under Price Cap IR.

Sheet 24. hidden (hidden)
A1: Rate Class | B1: MFC Adjustment from R/C Model | C1: DVR Adjustment from R/C Model

Sheet Sheet1 (hidden)

Sheet 10a. Proposed ACM Projects (hidden)
A11: Identify ALL Proposed ACM projects and related CAPEX costs in the relevant years
B13: Cost of Service | C13: Price Cap IR
B14: Test Year | C14: Year 1 | D14: Year 2 | E14: Year 3 | F14: Year 4
B15: ='1. Information Sheet'!K26 -> 2019 | C15: =B15+1 -> 2020 | D15: =C15+1 -> 2021 | E15: =D15+1 -> 2022 | F15: =E15+1 -> 2023
A16: Distribution System Plan CAPEX
A18: Materiality Threshold | C18: =IF('9. Threshold Test'!$E$60="", 0, '9. Threshold Test'!$E$60) -> 76239665.39 | D18: =IF('9. Threshold Test'!$E$61="", 0, '9. Threshold Test'!$E$61) -> 76564006.2 | E18: =IF('9. Threshold Test'!$E$62="", 0, '9. Threshold Test'!$E$62) -> 76893960.44 | F18: =IF('9. Threshold Test'!$E$63="", 0, '9. Threshold Test'!$E$63) -> 77229625.24
A20: Maximum Eligible Incremental Capital (Forecasted CAPEX less Threshold) | C20: =MAX(0,C16-C18) -> 0 | D20: =MAX(0,D16-D18) -> 0 | E20: =MAX(0,E16-E18) -> 0 | F20: =MAX(0,F16-F18) -> 0
A22: Maximum Eligible Incremental Capital (Forecasted Capex less Threshold) | C22: =IF(C18>C16,0,C16-C18) -> 0 | D22: =IF(D18>D16,0,D16-D18) -> 0 | E22: =IF(E18>E16,0,E16-E18) -> 0 | F22: =IF(F18>F16,0,F16-F18) -> 0
A24: Proposed Capital Projects Eligible for ACM treatment
B25: =B13 -> Cost of Service | C25: =C13 -> Price Cap IR
A26: Project Descriptions: | B26: Test Year | C26: Year 1 | D26: Year 2 | E26: Year 3 | F26: Year 4 | G26: Total
B27: =B15 -> 2019 | C27: =C15 -> 2020 | D27: =D15 -> 2021 | E27: =E15 -> 2022 | F27: =F15 -> 2023
G28: =SUM(C28:F28) -> 0
G29: 0
G30: 0
G31: 0
G32: 0
G33: 0
G34: 0
G35: 0
G36: 0
G37: 0
G38: 0
G39: 0
G40: 0
G41: 0
G42: 0
G43: 0
G44: 0
G45: 0
G46: 0
G47: 0
A49: Total Cost of ACM Projects | C49: =SUM(C28:C47) -> 0 | D49: =SUM(D28:D47) -> 0 | E49: =SUM(E28:E47) -> 0 | F49: =SUM(F28:F47) -> 0
A51: Maximum Allowed Incremental Capital | C51: =MIN(C49,C22) -> 0 | D51: =MIN(D49,D22) -> 0 | E51: =MIN(E49,E22) -> 0 | F51: =MIN(F49,F22) -> 0 | G51: =SUM(C51:F51) -> 0
A109: Maximum Allowed Incremental Capital | C109: =MIN(C49,C22) -> 0 | D109: =MIN(D49,D22) -> 0 | E109: 0 | F109: 0

Sheet 10b. Proposed ACM ICM Projects
A11: Identify ALL Proposed ACM projects and related CAPEX costs in the relevant years
C13: Cost of Service | D13: Price Cap IR
C14: Test Year | D14: Year 1 | E14: Year 2 | F14: Year 3 | G14: Year 4
C15: =IF('1. Information Sheet'!F26="Price-Cap IR",'1. Information Sheet'!F34,'1. Information Sheet'!K26) -> 2017 | D15: =C15+1 -> 2018 | E15: =D15+1 -> 2019 | F15: =E15+1 -> 2020 | G15: =F15+1 -> 2021
A16: Distribution System Plan CAPEX | E16: 102074174
A18: Materiality Threshold | D18: =IF('9. Threshold Test'!$E$60="", 0, '9. Threshold Test'!$E$60) -> 76239665.39 | E18: =IF('9. Threshold Test'!$E$61="", 0, '9. Threshold Test'!$E$61) -> 76564006.2 | F18: =IF('9. Threshold Test'!$E$62="", 0, '9. Threshold Test'!$E$62) -> 76893960.44 | G18: =IF('9. Threshold Test'!$E$63="", 0, '9. Threshold Test'!$E$63) -> 77229625.24
A20: Maximum Eligible Incremental Capital (Forecasted Capex less Threshold) | C20: 0 | D20: =IF(D18>D16,0,D16-D18) -> 0 | E20: =IF(E18>E16,0,E16-E18) -> 25510167.8 | F20: =IF(F18>F16,0,F16-F18) -> 0 | G20: =IF(G18>G16,0,G16-G18) -> 0
A22: Project Descriptions: | B22: Type | C22: Test Year | D22: Year 1 | E22: Year 2 | F22: Year 3 | G22: Year 4 | H22: Total
C23: =C15 -> 2017 | D23: =D15 -> 2018 | E23: =E15 -> 2019 | F23: =F15 -> 2020 | G23: =G15 -> 2021
H24: =SUM(D24:G24) -> 0
A25: Barrie TS Upgrade- Metering and Feeder Relocation | E25: 2100000 | H25: 2100000
H26: 0
H27: 0
H28: 0
H29: 0
H30: 0
H31: 0
H32: 0
H33: 0
H34: 0
H35: 0
H36: 0
H37: 0
H38: 0
H39: 0
H40: 0
H41: 0
H42: 0
H43: 0
A45: Total Cost of ACM Projects | C45: 0 | D45: =SUM(D24:D43) -> 0 | E45: =SUM(E24:E43) -> 2100000 | F45: =SUM(F24:F43) -> 0 | G45: =SUM(G24:G43) -> 0 | H45: =SUM(D45:G45) -> 2100000
A47: Maximum Allowed Incremental Capital | D47: =MIN(D45,D20) -> 0 | E47: =MIN(E45,E20) -> 2100000 | F47: =MIN(F45,F20) -> 0 | G47: =MIN(G45,G20) -> 0 | H47: =SUM(D47:G47) -> 2100000
D49: Price Cap IR
C50: Test Year | D50: Year 1 | G50: Year 2 | J50: Year 3 | M50: Year 4
C51: =C15 -> 2017 | E51: =D15 -> 2018 | H51: =E15 -> 2019 | K51: =F15 -> 2020 | N51: =G15 -> 2021
A52: Distribution System Plan CAPEX | C52: =C16 -> 0 | D52: =D16 -> 0 | G52: =E16 -> 102074174 | J52: =F16 -> 0 | M52: =G16 -> 0
A54: Materiality Threshold | D54: =D18 -> 76239665.39 | G54: =E18 -> 76564006.2 | J54: =F18 -> 76893960.44 | M54: =G18 -> 77229625.24
A56: Maximum Eligible Incremental Capital (Forecasted Capex less Threshold) | C56: 0 | D56: =D20 -> 0 | G56: =E20 -> 25510167.8 | J56: =F20 -> 0 | M56: =G20 -> 0
C58: Test Year | D58: Year 1 | G58: Year 2 | J58: Year 3 | M58: Year 4
C59: =C15 -> 2017 | E59: =D15 -> 2018 | H59: =E15 -> 2019 | K59: =F15 -> 2020 | N59: =G15 -> 2021
A60: Project Descriptions: | B60: Type | D60: Proposed ACM/ICM | E60: Amortization Expense | F60: CCA | G60: Proposed ACM/ICM | H60: Amortization Expense | I60: CCA | J60: Proposed ACM/ICM | K60: Amortization Expense | L60: CCA | M60: Proposed ACM/ICM | N60: Amortization Expense | O60: CCA
A61: =IF(OR(A24="", A24=0), "", A24) ->  | D61: =IF(OR(D24="", D24=0), 0, D24) -> 0 | G61: =IF(OR(E24="", E24=0), 0, E24) -> 0 | J61: =IF(OR(F24="", F24=0), 0, F24) -> 0 | M61: =IF(OR(G24="", G24=0), 0, G24) -> 0
A62: Barrie TS Upgrade- Metering and Feeder Relocation | D62: 0 | G62: 2100000 | H62: 63000 | I62: =G62*8% -> 168000 | J62: 0 | M62: 0
D63: 0 | G63: 0 | J63: 0 | M63: 0
D64: 0 | G64: 0 | J64: 0 | M64: 0
D65: 0 | G65: 0 | J65: 0 | M65: 0
D66: 0 | G66: 0 | J66: 0 | M66: 0
D67: 0 | G67: 0 | J67: 0 | M67: 0
D68: 0 | G68: 0 | J68: 0 | M68: 0
D69: 0 | G69: 0 | J69: 0 | M69: 0
D70: 0 | G70: 0 | J70: 0 | M70: 0
D71: 0 | G71: 0 | J71: 0 | M71: 0
D72: 0 | G72: 0 | J72: 0 | M72: 0
D73: 0 | G73: 0 | J73: 0 | M73: 0
D74: 0 | G74: 0 | J74: 0 | M74: 0
D75: 0 | G75: 0 | J75: 0 | M75: 0
D76: 0 | G76: 0 | J76: 0 | M76: 0
D77: 0 | G77: 0 | J77: 0 | M77: 0
D78: 0 | G78: 0 | J78: 0 | M78: 0
D79: 0 | G79: 0 | J79: 0 | M79: 0
D80: 0 | G80: 0 | J80: 0 | M80: 0
A82: Total Cost of Projects | D82: =SUM(D61:D80) -> 0 | E82: =SUM(E61:E80) -> 0 | F82: 0 | G82: 2100000 | H82: 63000 | I82: 168000 | J82: 0 | K82: 0 | L82: 0 | M82: 0 | N82: 0 | O82: 0

Sheet 11. Incremental Capital Adj.
B12: Incremental Capital Adjustment
B16: Current Revenue Requirement
B18: Current Revenue Requirement - Total | E18: ='6. Rev_Requ_Check'!E62 -> 201738242.9 | F18: A
B21: Return on Rate Base
B22: Incremental Capital | E22: =IF('1. Information Sheet'!F26="COS",0, VLOOKUP("Maximum Allowed Incremental Capital",'10b. Proposed ACM ICM Projects'!$A$14:$G$52,MATCH("Year " & '1. Information Sheet'!F28,'10b. Proposed ACM ICM Projects'!$A$14:$G$14,0),FALSE)) -> 2100000 | F22: B
B23: Depreciation Expense | E23: =IF('1. Information Sheet'!F26="COS", 0, IF("Year " & '1. Information Sheet'!F28="Year 1", '10b. Proposed ACM ICM Projects'!E82, IF("Year " & '1. Information Sheet'!F28="Year 2", '10b. Proposed ACM ICM Projects'!H82,IF("Year " & '1. Information Sheet'!F28="Year 3", '10b. Proposed ACM ICM Projects'!K82, IF("Year " & '1. Information Sheet'!F28="Year 4", '10b. Proposed ACM ICM Projects'!N82, ""))))) -> 63000 | F23: C
B24: Incremental Capital to be included in Rate Base | E24: =E22-E23 -> 2037000 | F24: D = B - C
B26: Deemed ShortTerm Debt % | C26: ='6. Rev_Requ_Check'!C36 -> 0.04 | D26: E | E26: =E24*C26 -> 81480 | F26: G = D * E
B27: Deemed Long Term Debt % | C27: ='6. Rev_Requ_Check'!C37 -> 0.56 | D27: F | E27: =E24*C27 -> 1140720 | F27: H = D * F
B29: Short Term Interest | C29: ='6. Rev_Requ_Check'!C40 -> 0.0176 | D29: I | E29: =E26*C29 -> 1434.048 | F29: K = G * I
B30: Long Term Interest | C30: ='6. Rev_Requ_Check'!C41 -> 0.03882504 | D30: J | E30: =E27*C30 -> 44288.49963 | F30: L = H * J
B32: Return on Rate Base - Interest | E32: =SUM(E29:E30) -> 45722.54763 | F32: M = K + L
B35: Deemed Equity % | C35: ='6. Rev_Requ_Check'!C38 -> 0.4 | D35: N | E35: =E24*C35 -> 814800 | F35: P = D * N
B37: Return on Rate Base -Equity | C37: ='6. Rev_Requ_Check'!C42 -> 0.0878 | D37: O | E37: =E35*C37 -> 71539.44 | F37: Q = P * O
B39: Return on Rate Base - Total | E39: =E32+E37 -> 117261.9876 | F39: R = M + Q
B43: Amortization Expense
B45: Amortization Expense - Incremental | D45: C | E45: =E23 -> 63000 | F45: S
B48: Grossed up PIL's
B50: Regulatory Taxable Income | D50: O | E50: =E37 -> 71539.44 | F50: T
B52: Add Back Amortization Expense | D52: S | E52: =E45 -> 63000 | F52: U
B54: Deduct CCA | E54: =IF('1. Information Sheet'!F26="COS", "", IF("Year " & '1. Information Sheet'!F28="Year 1", '10b. Proposed ACM ICM Projects'!F82, IF("Year " & '1. Information Sheet'!F28="Year 2", '10b. Proposed ACM ICM Projects'!I82,IF("Year " & '1. Information Sheet'!F28="Year 3", '10b. Proposed ACM ICM Projects'!L82, IF("Year " & '1. Information Sheet'!F28="Year 4", '10b. Proposed ACM ICM Projects'!O82, ""))))) -> 168000 | F54: V
B56: Incremental Taxable Income | E56: =E50+E52-E54 -> -33460.56 | F56: W = T + U - V
B58: Current Tax Rate | C58: 0.265 | D58: X
B60: PIL's Before Gross Up | E60: =E56*C58 -> -8867.0484 | F60: Y = W * X
B62: Incremental Grossed Up PIL's | E62: =E60/(1-C58) -> -12064.01143 | F62: Z = Y / ( 1 - X )
B65: Ontario Capital Tax
B66: Incremental Capital CAPEX | F66: AA
B68: Less : Available Capital Exemption (if any) | F68: AB
B70: Incremental Capital CAPEX subject to OCT | F70: AC = AA - AB
B72: Ontario Capital Tax Rate (F1.1 Z-Factor Tax Changes) | D72: AD
B74: Incremental Ontario Capital Tax | F74: AE = AC * AD
B77: Incremental Revenue Requirement
B78: Return on Rate Base - Total | D78: Q | E78: =E39 -> 117261.9876 | F78: AA
B79: Amortization Expense - Total | D79: S | E79: =E45 -> 63000 | F79: AB
B80: Incremental Grossed Up PIL's | D80: Z | E80: =E62 -> -12064.01143 | F80: AC
B83: Incremental Revenue Requirement | E83: =SUM(E78:E81) -> 168197.9762 | F83: AD = AA + AB + AC

Sheet 12. Opt 1-Rate Rider Calc F & V
Z1: TRUE
Z2: FALSE
Z3: FALSE
A13: Calculation of incremental rate rider. Choose one of the 3 options:
A15: Rate Class | C15: Service Charge % Revenue | D15: Distribution Volumetric Rate % Revenue kWh | E15: Distribution Volumetric Rate % Revenue kW | F15: Service Charge Revenue | G15: Distribution Volumetric Rate Revenue kWh | H15: Distribution Volumetric Rate Revenue kW | I15: Total Revenue by Rate Class | K15: Billed Customers or Connections | L15: Billed kWh | M15: Billed kW | O15: Service Charge Rate Rider | P15: Distribution Volumetric Rate kWh Rate Rider | Q15: Distribution Volumetric Rate kW Rate Rider
C16: From Sheet 8 | D16: From Sheet 8 | E16: From Sheet 8 | F16: Col C * Col Itotal | G16: Col D* Col Itotal | H16: Col E* Col Itotal | K16: From Sheet 4 | L16: From Sheet 4 | M16: From Sheet 4 | O16: Col F / Col K / 12 | P16: Col G / Col L | Q16: Col H / Col M
A17: RESIDENTIAL | C17: 0.4222153129 | D17: 0.1161627189 | E17: 0 | F17: 505262.62 | G17: 139011.25 | H17: 0 | I17: 644273.87 | K17: 331461 | L17: 2689802037 | M17: 0 | O17: 0.16 | P17: 0 | Q17: 0 | R17: Note: As per the OEB's letter issued July 16, 2015 (EB-2012-0410), Residential Rates will be applied on a fixed basis only.
A18: GENERAL SERVICE LESS THAN 50 KW | C18: 0.05597133362 | D18: 0.09351519089 | E18: 0 | F18: 66980.57 | G18: 111909.09 | H18: 0 | I18: 178889.66 | K18: 32775 | L18: 1031991524 | M18: 0 | O18: 0.17 | P18: 0.0001 | Q18: 0
A19: GENERAL SERVICE 50 TO 4,999 KW SERVICE CLASSIFICATION | C19: 0.04256102567 | D19: 0 | E19: 0.2537956125 | F19: 50932.53 | G19: 0 | H19: 303715.74 | I19: 354648.27 | K19: 5081 | L19: 4566530904 | M19: 12192631.56 | O19: 0.84 | P19: 0 | Q19: 0.0249
A20: LARGE USE SERVICE CLASSIFICATION | C20: 0.0007218020202 | D20: 0 | E20: 0.001661769328 | F20: 863.78 | G20: 0 | H20: 1988.63 | I20: 2852.41 | K20: 2 | L20: 75964677.2 | M20: 149678.9801 | O20: 35.99 | P20: 0 | Q20: 0.0133
A21: UNMETERED SCATTERED LOAD SERVICE CLASSIFICATION | C21: 0.001555533219 | D21: 0.001404190529 | E21: 0 | F21: 1861.5 | G21: 1680.39 | H21: 0 | I21: 3541.89 | K21: 3044 | L21: 14542413.3 | O21: 0.05 | P21: 0.0001 | Q21: 0
A22: SENTINEL LIGHTING | C22: 5.153716908e-05 | D22: 0 | E22: 4.763811717e-05 | F22: 61.67 | G22: 0 | H22: 57.01 | I22: 118.68 | K22: 207 | L22: 377900.014 | M22: 974.7851233 | O22: 0.02 | P22: 0 | Q22: 0.0585
A23: STREET LIGHTING | C23: 0.006344771409 | D23: 0 | E23: 0.003991563706 | F23: 7592.75 | G23: 0 | H23: 4776.68 | I23: 12369.43 | K23: 89729 | L23: 45603290.64 | M23: 127502.8492 | O23: 0.01 | P23: 0 | Q23: 0.0375
A24: Total | C24: =SUM(C17:C23) -> 0.529421316 | D24: 0.2110821004 | E24: 0.2594965836 | F24: 633555.42 | G24: 252600.73 | H24: 310538.06 | I24: 1196694.21 | K24: =SUM(K17:K23) -> 462299 | L24: =SUM(L17:L23) -> 8424812745 | M24: =SUM(M17:M23) -> 12470788.18
I25: 1196694.202
I26: From Sheet 11, E83
